Workbook

Sheet 1
A1: תרגול באקסל
A3: נתונים | B3: ת.ז. | C3: שם הסטודנט | D3: מגדר | E3: טלפון | F3: מיקוד | G3: התמחות | H3: ציון ת. 1 | I3: ציון ת. 2 | J3: ציון ת. 3 | K3: ממוצע תרגילים | L3: ציון פרויקט | M3: ציון בחינה | N3: ציון סופי | O3: ציון במילים | P3: נשים מצטיינות | Q3: נשים או מצטיינים | R3: לא נכשלו | T3: קריטריונים לסינון מתקדם
B4: 830998987 | C4: מיכל | D4: נ | E4: 3527439 | F4: 56324 | G4: שיווק | H4: 80 | J4: 87 | K4: =AVERAGE(H4:J4) -> 83.5 | L4: 90 | N4: =ROUND(H4*$C$32+I4*$C$33+J4*$C$34+L4*$C$35+M4*$C$36,0) -> 44 | O4: =IF(N4<$C$41,$B$40,IF(N4<$C$42,$B$41,$B$42)) -> נכשל | P4: =IF(AND(D4=$C$46,O4=$B$42),"מלגה","") ->  | Q4: =IF(OR(D4=$C$46,O4=$B$42),"מלגה","") -> מלגה | R4: =IF(NOT(N4<$C$41),"מלגה","") -> 
B5: 298754355 | C5: רמי | D5: ז | E5: 8763456 | F5: 83934 | G5: חשבונאות | H5: 88 | I5: 90 | J5: 74 | K5: 84 | L5: 55 | M5: 45 | N5: 60 | O5: עובר | R5: מלגה
B6: 388923057 | C6: מיכל | D6: נ | E6: 8743644 | F6: 44141 | G6: חשבונאות | H6: 60 | I6: 100 | J6: 80 | K6: 80 | L6: 40 | M6: 61 | N6: 60 | O6: עובר | Q6: מלגה | R6: מלגה
B7: 947465892 | C7: שחר | D7: ז | E7: 3434324 | F7: 41466 | G7: חשבונאות | I7: 79 | J7: 99 | K7: 89 | L7: 86 | M7: 65 | N7: 70 | O7: עובר | R7: מלגה
B8: 987654321 | C8: יעקב | D8: ז | E8: 7563094 | F8: 86534 | G8: שיווק | H8: 91 | I8: 79 | J8: 85 | K8: 85 | L8: 100 | M8: 50 | N8: 76 | O8: עובר | R8: מלגה
B9: 983687692 | C9: שרון | D9: נ | E9: 6347234 | F9: 55235 | G9: חשבונאות | H9: 45 | I9: 60 | K9: 52.5 | L9: 99 | M9: 94 | N9: 78 | O9: עובר | Q9: מלגה | R9: מלגה
B10: 193878400 | C10: טלי | D10: נ | E10: 9876544 | F10: 70000 | G10: שיווק | H10: 81 | I10: 80 | J10: 82 | K10: 81 | L10: 81 | M10: 81 | N10: 81 | O10: עובר | Q10: מלגה | R10: מלגה
B11: 658370843 | C11: יעל | D11: נ | E11: 2118758 | F11: 55326 | G11: שיווק | H11: 67 | I11: 99 | J11: 69 | K11: 78.33333333 | L11: 90 | M11: 85 | N11: 85 | O11: מצטיין | P11: מלגה | Q11: מלגה | R11: מלגה
B12: 123456789 | C12: דניאל | D12: ז | E12: 9877665 | F12: 123 | G12: שיווק | H12: 89 | I12: 86 | J12: 99 | K12: 91.33333333 | L12: 99 | M12: 80 | N12: 89 | O12: מצטיין | Q12: מלגה | R12: מלגה
B13: 244576280 | C13: שחר | D13: נ | E13: 3252524 | F13: 44451 | G13: חשבונאות | H13: 94 | I13: 100 | J13: 93 | K13: 95.66666667 | L13: 95 | M13: 100 | N13: 97 | O13: מצטיין | P13: מלגה | Q13: מלגה | R13: מלגה
A15: חישובים | B15: ממוצע כיתתי | H15: =AVERAGE(H4:H13) -> 77.22222222 | I15: =AVERAGE(I4:I13) -> 85.88888889 | J15: 85.33333333 | K15: 82.03333333 | L15: 83.5 | M15: 73.44444444 | N15: 74 | P15: התפלגות ציונים סופיים
B16: חציון | H16: =MEDIAN(H4:H13) -> 81 | I16: =MEDIAN(I4:I13) -> 86 | J16: 85 | K16: 83.75 | L16: 90 | M16: 80 | N16: 77 | P16: 0-59 | Q16: 59 | R16: =FREQUENCY(N4:N13,Q16:Q21) -> 1
B17: שכיח | H17: =MODE(H4:H13) ->  | I17: =MODE(I4:I13) -> 100 | J17: 99 | L17: 90 | N17: 60 | P17: 60-74 | Q17: 74 | R17: 3
B18: מקסימום | H18: =MAX(H4:H13) -> 94 | I18: =MAX(I4:I13) -> 100 | J18: 99 | K18: 95.66666667 | L18: 100 | M18: 100 | N18: 97 | P18: 75-84 | Q18: 84 | R18: 3
B19: מינימום | H19: =MIN(H4:H13) -> 45 | I19: =MIN(I4:I13) -> 60 | J19: 69 | K19: 52.5 | L19: 40 | M19: 45 | N19: 44 | P19: 85-94 | Q19: 94 | R19: 2
B20: סטיית תקן | H20: =STDEV(H4:H13) -> 16.53615567 | I20: =STDEV(I4:I13) -> 13.16666667 | J20: 10.42832681 | K20: 11.67534069 | L20: 20.23885153 | M20: 19.19056481 | N20: 15.81841402 | P20: 95-100 | Q20: 100 | R20: 1
B21: שונות | H21: =VAR(H4:H13) -> 273.4444444 | I21: =VAR(I4:I13) -> 173.3611111 | J21: 108.75 | K21: 136.3135802 | L21: 409.6111111 | M21: 368.2777778 | N21: 250.2222222 | P21: מעל 100 | R21: 0
B22: שלחו תרגיל/ נבחנו | H22: =COUNT(H4:H13) -> 9 | I22: =COUNT(I4:I13) -> 9 | J22: 9 | K22: 10 | L22: 10 | M22: 9 | N22: 10
B23: נכשלו | H23: =COUNTIF(H4:H13,"<"&$C$41) -> 1 | I23: =COUNTIF(I4:I13,"<"&$C$41) -> 0 | J23: 0 | K23: 1 | L23: 2 | M23: 2 | N23: 1 | P23: הסטודנט עם הציון הגבוה ביותר
B24: עברו | H24: =COUNTIFS(H4:H13,">="&$C$41,H4:H13,"<"&$C$42) -> 4 | I24: =COUNTIFS(I4:I13,">="&$C$41,I4:I13,"<"&$C$42) -> 4 | J24: 4 | K24: 5 | L24: 1 | M24: 4 | N24: 6 | P24: =LOOKUP(N18,N4:N13,C4:C13) -> שחר
B25: מצטיינים | H25: =COUNTIF(H4:H13,E42) -> 4 | I25: =COUNTIF(I4:I13,">="&$C$42) -> 5 | J25: 5 | K25: 4 | L25: 7 | M25: 3 | N25: 3
B26: מתוכם: | C26: =B45 -> סטודנטים | H26: =COUNTIFS($D$4:$D$13,$C$45,H4:H13,">="&$C$42) -> 3 | I26: =COUNTIFS($D$4:$D$13,$C$45,I4:I13,">="&$C$42) -> 2 | J26: 3 | K26: 3 | L26: 3 | M26: 0 | N26: 1 | P26: המיקום של 'ציון סופי'
C27: =B46 -> סטודנטיות | H27: =COUNTIFS($D$4:$D$13,$C$46,H4:H13,$E$42) -> 1 | I27: =COUNTIFS($D$4:$D$13,$C$46,I4:I13,$E$42) -> 3 | J27: 2 | K27: 1 | L27: 4 | M27: 3 | N27: 2 | P27: =MATCH(N3,B3:R3,0) -> 13
B28: ס"ה סטודנטים | D28: =COUNTA(C4:C13) -> 10 | G28: ממוצע של מקבלי ציון "עובר": | H28: =AVERAGEIFS(H4:H13,H4:H13,">="&$C$41,H4:H13,"<"&$C$42) -> 72 | I28: =AVERAGEIFS(I4:I13,I4:I13,">="&$C$41,I4:I13,"<"&$C$42) -> 74.5 | J28: 76.25 | K28: 81.36666667 | L28: 81 | M28: 71.75 | N28: 70.83333333
B29: מתוכם: | C29: =B45 -> סטודנטים | D29: =COUNTIF(D4:D13,C45) -> 4 | G29: בממוצע: | H29: =AVERAGEIF($D$4:$D$13,$C45,H$4:H$13) -> 89.33333333 | I29: =AVERAGEIF($D$4:$D$13,$C45,I$4:I$13) -> 83.5 | J29: 89.25 | K29: 87.33333333 | L29: 85 | M29: 60 | N29: 73.75 | P29: שליפת מידע עם index+match
C30: =B46 -> סטודנטיות | D30: =COUNTIF(D4:D13,C46) -> 6 | G30: בממוצע: | H30: =AVERAGEIF($D$4:$D$13,$C46,H$4:H$13) -> 71.16666667 | I30: 87.8 | J30: 82.2 | K30: 78.5 | L30: 82.5 | M30: 84.2 | N30: 74.16666667 | P30: הזן ציון | R30: 81
P31: בחר מידע מבוקש | R31: שם הסטודנט
A32: טבלת משקולות | B32: משקל תרגיל 1 | C32: 0.1 | P32: תוצאה: | R32: =INDEX(B4:R13,MATCH(R30,N4:N13,0),MATCH(R31,B3:R3,0)) -> טלי
B33: משקל תרגיל 2 | C33: 0.1
B34: משקל תרגיל 3 | C34: 0.1
B35: משקל פרויקט | C35: 0.3 | O35: שליפת מידע עם Vlookup
B36: משקל מבחן | C36: 0.4 | O36: הזן ת.ז. | Q36: 123456789
B37: סה"כ | C37: =SUM(C32:C36) -> 1 | O37: בחר מידע מבוקש | Q37: ממוצע תרגילים | R37: =VLOOKUP($Q$36,$B$3:$R$13,MATCH(Q37,$B$3:$R$3,0),FALSE) -> 91.33333333
O38: בחר מידע מבוקש | Q38: ציון פרויקט | R38: =VLOOKUP($Q$36,$B$3:$R$13,MATCH(Q38,$B$3:$R$3,0),FALSE) -> 99
A39: טבלת עזר | C39: מ- | D39: עד | O39: בחר מידע מבוקש | Q39: ציון בחינה | R39: =VLOOKUP($Q$36,$B$3:$R$13,MATCH(Q39,$B$3:$R$3,0),FALSE) -> 80
B40: נכשל | C40: 0 | D40: 59.49 | O40: בחר מידע מבוקש | Q40: ציון סופי | R40: =VLOOKUP($Q$36,$B$3:$R$13,MATCH(Q40,$B$3:$R$3,0),FALSE) -> 89
B41: עובר | C41: 59.5 | D41: 84.49
B42: מצטיין | C42: =84.5 -> 84.5 | D42: 100 | E42: >=84.50
A44: סמלים | B44: מגדר
B45: סטודנטים | C45: ז
B46: סטודנטיות | C46: נ
B50: ת.ז. | C50: שם הסטודנט | D50: מגדר | E50: טלפון | F50: מיקוד | G50: התמחות | H50: ציון ת. 1 | I50: ציון ת. 2 | J50: ציון ת. 3 | K50: ממוצע תרגילים | L50: ציון פרויקט | M50: ציון בחינה | N50: ציון סופי | O50: ציון במילים | P50: נשים מצטיינות | Q50: נשים או מצטיינים | R50: לא נכשלו | T50: מגדר
B51: 193878400 | C51: טלי | D51: נ | E51: 9876544 | F51: 70000 | G51: שיווק | H51: 81 | I51: 80 | J51: 82 | K51: 81 | L51: 81 | M51: 81 | N51: 81 | O51: עובר | Q51: מלגה | R51: מלגה | T51: נ
B52: 244576280 | C52: שחר | D52: נ | E52: 3252524 | F52: 44451 | G52: חשבונאות | H52: 94 | I52: 100 | J52: 93 | K52: 95.66666667 | L52: 95 | M52: 100 | N52: 97 | O52: מצטיין | P52: מלגה | Q52: מלגה | R52: מלגה
B53: 388923057 | C53: מיכל | D53: נ | E53: 8743644 | F53: 44141 | G53: חשבונאות | H53: 60 | I53: 100 | J53: 80 | K53: 80 | L53: 40 | M53: 61 | N53: 60 | O53: עובר | Q53: מלגה | R53: מלגה
B54: 658370843 | C54: יעל | D54: נ | E54: 2118758 | F54: 55326 | G54: שיווק | H54: 67 | I54: 99 | J54: 69 | K54: 78.33333333 | L54: 90 | M54: 85 | N54: 85 | O54: מצטיין | P54: מלגה | Q54: מלגה | R54: מלגה
B55: 830998987 | C55: מיכל | D55: נ | E55: 3527439 | F55: 56324 | G55: שיווק | H55: 80 | J55: 87 | K55: 83.5 | L55: 90 | N55: 44 | O55: נכשל | Q55: מלגה
B56: 983687692 | C56: שרון | D56: נ | E56: 6347234 | F56: 55235 | G56: חשבונאות | H56: 45 | I56: 60 | K56: 52.5 | L56: 99 | M56: 94 | N56: 78 | O56: עובר | Q56: מלגה | R56: מלגה
B58: ת.ז. | C58: שם הסטודנט | T58: מגדר
B59: 123456789 | C59: דניאל | T59: ז
B60: 298754355 | C60: רמי
B61: 947465892 | C61: שחר
B62: 987654321 | C62: יעקב
B64: שם הסטודנט | C64: ציון סופי | T64: מגדר | U64: ציון במילים
B65: שחר | C65: 97 | T65: נ | U65: מצטיין
B66: יעל | C66: 85
B68: שם הסטודנט | C68: ציון סופי | T68: ציון סופי
B69: דניאל | C69: 89 | T69: >=85
B70: שחר | C70: 97 | T70: <60
B71: יעל | C71: 85
B72: מיכל | C72: 44
B74: שם הסטודנט | C74: ציון בחינה | T74: ציון בחינה | U74: ציון בחינה
B75: דניאל | C75: 80 | T75: >=60 | U75: <85
B76: טלי | C76: 81
B77: מיכל | C77: 61
B78: שחר | C78: 65
B80: שם הסטודנט | T80: שם הסטודנט
B81: יעל | T81: י*
B82: יעקב
B84: שם הסטודנט | C84: מגדר | D84: ציון סופי | T84: מגדר | U84: ציון במילים
B85: דניאל | C85: ז | D85: 89 | T85: נ
B86: טלי | C86: נ | D86: 81 | T86: ז | U86: מצטיין
B87: שחר | C87: נ | D87: 97
B88: מיכל | C88: נ | D88: 60
B89: יעל | C89: נ | D89: 85
B90: מיכל | C90: נ | D90: 44
B91: שרון | C91: נ | D91: 78
B93: שם הסטודנט | C93: ציון סופי
B94: דניאל | C94: 89 | T94: =N4>$N$15 -> FALSE
B95: טלי | C95: 81
B96: שחר | C96: 97
B97: יעל | C97: 85
B98: שרון | C98: 78
B99: יעקב | C99: 76
B101: שם הסטודנט | C101: ציון סופי | T101: ציון סופי
B102: דניאל | C102: 89 | T102: =">"&AVERAGE(N4:N13) -> >74
B103: טלי | C103: 81
B104: שחר | C104: 97
B105: יעל | C105: 85
B106: שרון | C106: 78
B107: יעקב | C107: 76

Sheet פתרון 1
A1: תרגול באקסל
A3: נתונים | B3: ת.ז. | C3: שם הסטודנט | D3: מגדר | E3: טלפון | F3: מיקוד | G3: התמחות | H3: ציון ת. 1 | I3: ציון ת. 2 | J3: ציון ת. 3 | K3: ממוצע תרגילים | L3: ציון פרויקט | M3: ציון בחינה | N3: ציון סופי | O3: ציון במילים | P3: נשים מצטיינות | Q3: נשים או מצטיינים | R3: לא נכשלו | T3: קריטריונים לסינון מתקדם
B4: 298754355 | C4: רמי | D4: ז | E4: 8763456 | F4: 83934 | G4: חשבונאות | H4: 88 | I4: 90 | J4: 74 | K4: =AVERAGE(H4:J4) -> 84 | L4: 55 | M4: 45 | N4: =ROUND(H4*$C$39+I4*$C$40+J4*$C$41+L4*$C$42+M4*$C$43,0) -> 60 | O4: =IF(N4<$C$48,$B$47,IF(N4<$C$49,$B$48,$B$49)) -> עובר | P4: =IF(AND(D4=$C$53,O4=$B$49),"מלגה","") ->  | Q4: =IF(OR(D4=$C$53,O4=$B$49),"מלגה","") ->  | R4: =IF(NOT(N4<$C$48),"מלגה","") -> מלגה
B5: 947465892 | C5: שחר | D5: ז | E5: 3434324 | F5: 41466 | G5: חשבונאות | I5: 79 | J5: 99 | K5: =AVERAGE(H5:J5) -> 89 | L5: 86 | M5: 65 | N5: =ROUND(H5*$C$39+I5*$C$40+J5*$C$41+L5*$C$42+M5*$C$43,0) -> 70 | O5: =IF(N5<$C$48,$B$47,IF(N5<$C$49,$B$48,$B$49)) -> עובר | P5: =IF(AND(D5=$C$53,O5=$B$49),"מלגה","") ->  | Q5: =IF(OR(D5=$C$53,O5=$B$49),"מלגה","") ->  | R5: =IF(NOT(N5<$C$48),"מלגה","") -> מלגה
B6: =SUBTOTAL(3,B4:B5) -> 2 | D6: ז ספירה
B7: 388923057 | C7: מיכל | D7: נ | E7: 8743644 | F7: 44141 | G7: חשבונאות | H7: 60 | I7: 100 | J7: 80 | K7: =AVERAGE(H7:J7) -> 80 | L7: 40 | M7: 61 | N7: =ROUND(H7*$C$39+I7*$C$40+J7*$C$41+L7*$C$42+M7*$C$43,0) -> 60 | O7: =IF(N7<$C$48,$B$47,IF(N7<$C$49,$B$48,$B$49)) -> עובר | P7: =IF(AND(D7=$C$53,O7=$B$49),"מלגה","") ->  | Q7: =IF(OR(D7=$C$53,O7=$B$49),"מלגה","") -> מלגה | R7: =IF(NOT(N7<$C$48),"מלגה","") -> מלגה
B8: 983687692 | C8: שרון | D8: נ | E8: 6347234 | F8: 55235 | G8: חשבונאות | H8: 45 | I8: 60 | K8: =AVERAGE(H8:J8) -> 52.5 | L8: 99 | M8: 94 | N8: =ROUND(H8*$C$39+I8*$C$40+J8*$C$41+L8*$C$42+M8*$C$43,0) -> 78 | O8: =IF(N8<$C$48,$B$47,IF(N8<$C$49,$B$48,$B$49)) -> עובר | P8: =IF(AND(D8=$C$53,O8=$B$49),"מלגה","") ->  | Q8: =IF(OR(D8=$C$53,O8=$B$49),"מלגה","") -> מלגה | R8: =IF(NOT(N8<$C$48),"מלגה","") -> מלגה
B9: 244576280 | C9: שחר | D9: נ | E9: 3252524 | F9: 44451 | G9: חשבונאות | H9: 94 | I9: 100 | J9: 93 | K9: =AVERAGE(H9:J9) -> 95.66666667 | L9: 95 | M9: 100 | N9: =ROUND(H9*$C$39+I9*$C$40+J9*$C$41+L9*$C$42+M9*$C$43,0) -> 97 | O9: =IF(N9<$C$48,$B$47,IF(N9<$C$49,$B$48,$B$49)) -> מצטיין | P9: =IF(AND(D9=$C$53,O9=$B$49),"מלגה","") -> מלגה | Q9: =IF(OR(D9=$C$53,O9=$B$49),"מלגה","") -> מלגה | R9: =IF(NOT(N9<$C$48),"מלגה","") -> מלגה
B10: =SUBTOTAL(3,B7:B9) -> 3 | D10: נ ספירה
B11: =SUBTOTAL(3,B4:B9) -> 5 | G11: חשבונאות ספירה
B12: 987654321 | C12: יעקב | D12: ז | E12: 7563094 | F12: 86534 | G12: שיווק | H12: 91 | I12: 79 | J12: 85 | K12: =AVERAGE(H12:J12) -> 85 | L12: 100 | M12: 50 | N12: =ROUND(H12*$C$39+I12*$C$40+J12*$C$41+L12*$C$42+M12*$C$43,0) -> 76 | O12: =IF(N12<$C$48,$B$47,IF(N12<$C$49,$B$48,$B$49)) -> עובר | P12: =IF(AND(D12=$C$53,O12=$B$49),"מלגה","") ->  | Q12: =IF(OR(D12=$C$53,O12=$B$49),"מלגה","") ->  | R12: =IF(NOT(N12<$C$48),"מלגה","") -> מלגה
B13: 123456789 | C13: דניאל | D13: ז | E13: 9877665 | F13: 123 | G13: שיווק | H13: 89 | I13: 86 | J13: 99 | K13: =AVERAGE(H13:J13) -> 91.33333333 | L13: 99 | M13: 80 | N13: =ROUND(H13*$C$39+I13*$C$40+J13*$C$41+L13*$C$42+M13*$C$43,0) -> 89 | O13: =IF(N13<$C$48,$B$47,IF(N13<$C$49,$B$48,$B$49)) -> מצטיין | P13: =IF(AND(D13=$C$53,O13=$B$49),"מלגה","") ->  | Q13: =IF(OR(D13=$C$53,O13=$B$49),"מלגה","") -> מלגה | R13: =IF(NOT(N13<$C$48),"מלגה","") -> מלגה
B14: =SUBTOTAL(3,B12:B13) -> 2 | D14: ז ספירה
B15: 830998987 | C15: מיכל | D15: נ | E15: 3527439 | F15: 56324 | G15: שיווק | H15: 80 | J15: 87 | K15: =AVERAGE(H15:J15) -> 83.5 | L15: 90 | N15: =ROUND(H15*$C$39+I15*$C$40+J15*$C$41+L15*$C$42+M15*$C$43,0) -> 44 | O15: =IF(N15<$C$48,$B$47,IF(N15<$C$49,$B$48,$B$49)) -> נכשל | P15: =IF(AND(D15=$C$53,O15=$B$49),"מלגה","") ->  | Q15: =IF(OR(D15=$C$53,O15=$B$49),"מלגה","") -> מלגה | R15: =IF(NOT(N15<$C$48),"מלגה","") -> 
B16: 193878400 | C16: טלי | D16: נ | E16: 9876544 | F16: 70000 | G16: שיווק | H16: 81 | I16: 80 | J16: 82 | K16: =AVERAGE(H16:J16) -> 81 | L16: 81 | M16: 81 | N16: =ROUND(H16*$C$39+I16*$C$40+J16*$C$41+L16*$C$42+M16*$C$43,0) -> 81 | O16: =IF(N16<$C$48,$B$47,IF(N16<$C$49,$B$48,$B$49)) -> עובר | P16: =IF(AND(D16=$C$53,O16=$B$49),"מלגה","") ->  | Q16: =IF(OR(D16=$C$53,O16=$B$49),"מלגה","") -> מלגה | R16: =IF(NOT(N16<$C$48),"מלגה","") -> מלגה
B17: 658370843 | C17: יעל | D17: נ | E17: 2118758 | F17: 55326 | G17: שיווק | H17: 67 | I17: 99 | J17: 69 | K17: =AVERAGE(H17:J17) -> 78.33333333 | L17: 90 | M17: 85 | N17: =ROUND(H17*$C$39+I17*$C$40+J17*$C$41+L17*$C$42+M17*$C$43,0) -> 85 | O17: =IF(N17<$C$48,$B$47,IF(N17<$C$49,$B$48,$B$49)) -> מצטיין | P17: =IF(AND(D17=$C$53,O17=$B$49),"מלגה","") -> מלגה | Q17: =IF(OR(D17=$C$53,O17=$B$49),"מלגה","") -> מלגה | R17: =IF(NOT(N17<$C$48),"מלגה","") -> מלגה
B18: =SUBTOTAL(3,B15:B17) -> 3 | D18: נ ספירה
B19: =SUBTOTAL(3,B12:B17) -> 5 | G19: שיווק ספירה
B20: =SUBTOTAL(3,B4:B17) -> 10 | G20: ספירה כוללת
A22: חישובים | B22: ממוצע כיתתי | H22: =AVERAGE(H4:H17) -> 77.22222222 | I22: =AVERAGE(I4:I17) -> 85.88888889 | J22: 85.33333333 | K22: 82.03333333 | L22: 83.5 | M22: 73.44444444 | N22: 74 | P22: התפלגות ציונים סופיים
B23: חציון | H23: =MEDIAN(H4:H17) -> 81 | I23: =MEDIAN(I4:I17) -> 86 | J23: 85 | K23: 83.75 | L23: 90 | M23: 80 | N23: 77 | P23: 0-59 | Q23: 59 | R23: =FREQUENCY(N4:N17,Q23:Q28) -> 1
B24: שכיח | H24: =MODE(H4:H17) ->  | I24: =MODE(I4:I17) -> 79 | J24: 99 | L24: 99 | N24: 60 | P24: 60-74 | Q24: 74 | R24: 3
B25: מקסימום | H25: =MAX(H4:H17) -> 94 | I25: =MAX(I4:I17) -> 100 | J25: 99 | K25: 95.66666667 | L25: 100 | M25: 100 | N25: 97 | P25: 75-84 | Q25: 84 | R25: 3
B26: מינימום | H26: =MIN(H4:H17) -> 45 | I26: =MIN(I4:I17) -> 60 | J26: 69 | K26: 52.5 | L26: 40 | M26: 45 | N26: 44 | P26: 85-94 | Q26: 94 | R26: 2
B27: סטיית תקן | H27: =STDEV(H4:H17) -> 16.53615567 | I27: =STDEV(I4:I17) -> 13.16666667 | J27: 10.42832681 | K27: 11.67534069 | L27: 20.23885153 | M27: 19.19056481 | N27: 15.81841402 | P27: 95-100 | Q27: 100 | R27: 1
B28: שונות | H28: =VAR(H4:H17) -> 273.4444444 | I28: =VAR(I4:I17) -> 173.3611111 | J28: 108.75 | K28: 136.3135802 | L28: 409.6111111 | M28: 368.2777778 | N28: 250.2222222 | P28: מעל 100 | R28: 0
B29: שלחו תרגיל/ נבחנו | H29: =COUNT(H4:H17) -> 9 | I29: =COUNT(I4:I17) -> 9 | J29: 9 | K29: 10 | L29: 10 | M29: 9 | N29: 10
B30: נכשלו | H30: =COUNTIF(H4:H17,"<"&$C$48) -> 1 | I30: 0 | J30: 0 | K30: 1 | L30: 2 | M30: 2 | N30: 1 | P30: הסטודנט עם הציון הגבוה ביותר
B31: עברו | H31: =COUNTIFS(H4:H17,">="&$C$48,H4:H17,"<"&$C$49) -> 4 | I31: 4 | J31: 4 | K31: 5 | L31: 1 | M31: 4 | N31: 6 | P31: =LOOKUP(N25,N4:N17,C4:C17) -> יעל
B32: מצטיינים | H32: =COUNTIF(H4:H17,E49) -> 4 | I32: =COUNTIF(I4:I17,">="&$C$49) -> 5 | J32: 5 | K32: 4 | L32: 7 | M32: 3 | N32: 3
B33: מתוכם: | C33: =B52 -> סטודנטים | H33: =COUNTIFS($D$4:$D$17,$C$52,H4:H17,">="&$C$49) -> 3 | I33: 2 | J33: 3 | K33: 3 | L33: 3 | M33: 0 | N33: 1 | P33: המיקום של 'ציון סופי'
C34: =B53 -> סטודנטיות | H34: =COUNTIFS($D$4:$D$17,$C$53,H4:H17,$E$49) -> 1 | I34: 3 | J34: 2 | K34: 1 | L34: 4 | M34: 3 | N34: 2 | P34: =MATCH(N3,B3:R3,0) -> 13
B35: ס"ה סטודנטים | D35: =COUNTA(C4:C17) -> 10 | G35: ממוצע של מקבלי ציון "עובר": | H35: =AVERAGEIFS(H4:H17,H4:H17,">="&$C$48,H4:H17,"<"&$C$49) -> 72 | I35: 74.5 | J35: 76.25 | K35: 81.36666667 | L35: 81 | M35: 71.75 | N35: 70.83333333
B36: מתוכם: | C36: =B52 -> סטודנטים | D36: =COUNTIF(D4:D17,C52) -> 4 | G36: בממוצע: | H36: =AVERAGEIF($D$4:$D$17,$C52,H$4:H$17) -> 89.33333333 | I36: 83.5 | J36: 89.25 | K36: 87.33333333 | L36: 85 | M36: 60 | N36: 73.75 | P36: שליפת מידע עם index+match
C37: =B53 -> סטודנטיות | D37: =COUNTIF(D4:D17,C53) -> 6 | G37: בממוצע: | H37: 71.16666667 | I37: 87.8 | J37: 82.2 | K37: 78.5 | L37: 82.5 | M37: 84.2 | N37: 74.16666667 | P37: הזן ציון | R37: 81
P38: בחר מידע מבוקש | R38: שם הסטודנט
A39: טבלת משקולות | B39: משקל תרגיל 1 | C39: 0.1 | P39: תוצאה: | R39: =INDEX(B4:R17,MATCH(R37,N4:N17,0),MATCH(R38,B3:R3,0)) -> טלי
B40: משקל תרגיל 2 | C40: 0.1
B41: משקל תרגיל 3 | C41: 0.1
B42: משקל פרויקט | C42: 0.3 | O42: שליפת מידע עם Vlookup
B43: משקל מבחן | C43: 0.4 | O43: הזן ת.ז. | Q43: 123456789
B44: סה"כ | C44: =SUM(C39:C43) -> 1 | O44: בחר מידע מבוקש | Q44: ממוצע תרגילים | R44: =VLOOKUP($Q$43,$B$3:$R$17,MATCH(Q44,$B$3:$R$3,0),FALSE) -> 91.33333333
O45: בחר מידע מבוקש | Q45: ציון פרויקט | R45: =VLOOKUP($Q$43,$B$3:$R$17,MATCH(Q45,$B$3:$R$3,0),FALSE) -> 99
A46: טבלת עזר | C46: מ- | D46: עד | O46: בחר מידע מבוקש | Q46: ציון בחינה | R46: =VLOOKUP($Q$43,$B$3:$R$17,MATCH(Q46,$B$3:$R$3,0),FALSE) -> 80
B47: נכשל | C47: 0 | D47: 59.49 | O47: בחר מידע מבוקש | Q47: ציון סופי | R47: =VLOOKUP($Q$43,$B$3:$R$17,MATCH(Q47,$B$3:$R$3,0),FALSE) -> 89
B48: עובר | C48: 59.5 | D48: 84.49
B49: מצטיין | C49: =84.5 -> 84.5 | D49: 100 | E49: >=84.50
A51: סמלים | B51: מגדר
B52: סטודנטים | C52: ז
B53: סטודנטיות | C53: נ
B57: ת.ז. | C57: שם הסטודנט | D57: מגדר | E57: טלפון | F57: מיקוד | G57: התמחות | H57: ציון ת. 1 | I57: ציון ת. 2 | J57: ציון ת. 3 | K57: ממוצע תרגילים | L57: ציון פרויקט | M57: ציון בחינה | N57: ציון סופי | O57: ציון במילים | P57: נשים מצטיינות | Q57: נשים או מצטיינים | R57: לא נכשלו | T57: מגדר
B58: 193878400 | C58: טלי | D58: נ | E58: 9876544 | F58: 70000 | G58: שיווק | H58: 81 | I58: 80 | J58: 82 | K58: 81 | L58: 81 | M58: 81 | N58: 81 | O58: עובר | Q58: מלגה | R58: מלגה | T58: נ
B59: 244576280 | C59: שחר | D59: נ | E59: 3252524 | F59: 44451 | G59: חשבונאות | H59: 94 | I59: 100 | J59: 93 | K59: 95.66666667 | L59: 95 | M59: 100 | N59: 97 | O59: מצטיין | P59: מלגה | Q59: מלגה | R59: מלגה
B60: 388923057 | C60: מיכל | D60: נ | E60: 8743644 | F60: 44141 | G60: חשבונאות | H60: 60 | I60: 100 | J60: 80 | K60: 80 | L60: 40 | M60: 61 | N60: 60 | O60: עובר | Q60: מלגה | R60: מלגה
B61: 658370843 | C61: יעל | D61: נ | E61: 2118758 | F61: 55326 | G61: שיווק | H61: 67 | I61: 99 | J61: 69 | K61: 78.33333333 | L61: 90 | M61: 85 | N61: 85 | O61: מצטיין | P61: מלגה | Q61: מלגה | R61: מלגה
B62: 830998987 | C62: מיכל | D62: נ | E62: 3527439 | F62: 56324 | G62: שיווק | H62: 80 | J62: 87 | K62: 83.5 | L62: 90 | N62: 44 | O62: נכשל | Q62: מלגה
B63: 983687692 | C63: שרון | D63: נ | E63: 6347234 | F63: 55235 | G63: חשבונאות | H63: 45 | I63: 60 | K63: 52.5 | L63: 99 | M63: 94 | N63: 78 | O63: עובר | Q63: מלגה | R63: מלגה
B65: ת.ז. | C65: שם הסטודנט | T65: מגדר
B66: 123456789 | C66: דניאל | T66: ז
B67: 298754355 | C67: רמי
B68: 947465892 | C68: שחר
B69: 987654321 | C69: יעקב
B71: שם הסטודנט | C71: ציון סופי | T71: מגדר | U71: ציון במילים
B72: שחר | C72: 97 | T72: נ | U72: מצטיין
B73: יעל | C73: 85
B75: שם הסטודנט | C75: ציון סופי | T75: ציון סופי
B76: דניאל | C76: 89 | T76: >=85
B77: שחר | C77: 97 | T77: <60
B78: יעל | C78: 85
B79: מיכל | C79: 44
B81: שם הסטודנט | C81: ציון בחינה | T81: ציון בחינה | U81: ציון בחינה
B82: דניאל | C82: 80 | T82: >=60 | U82: <85
B83: טלי | C83: 81
B84: מיכל | C84: 61
B85: שחר | C85: 65
B87: שם הסטודנט | T87: שם הסטודנט
B88: יעל | T88: י*
B89: יעקב
B91: שם הסטודנט | C91: מגדר | D91: ציון סופי | T91: מגדר | U91: ציון במילים
B92: דניאל | C92: ז | D92: 89 | T92: נ
B93: טלי | C93: נ | D93: 81 | T93: ז | U93: מצטיין
B94: שחר | C94: נ | D94: 97
B95: מיכל | C95: נ | D95: 60
B96: יעל | C96: נ | D96: 85
B97: מיכל | C97: נ | D97: 44
B98: שרון | C98: נ | D98: 78
B100: שם הסטודנט | C100: ציון סופי
B101: דניאל | C101: 89 | T101: =N4>$N$22 -> FALSE
B102: טלי | C102: 81
B103: שחר | C103: 97
B104: יעל | C104: 85
B105: שרון | C105: 78
B106: יעקב | C106: 76
B108: שם הסטודנט | C108: ציון סופי | T108: ציון סופי
B109: דניאל | C109: 89 | T109: =">"&AVERAGE(N4:N17) -> >74
B110: טלי | C110: 81
B111: שחר | C111: 97
B112: יעל | C112: 85
B113: שרון | C113: 78
B114: יעקב | C114: 76

Sheet 2-5
A1: תרגול באקסל
A3: נתונים | B3: ת.ז. | C3: שם הסטודנט | D3: מגדר | E3: טלפון | F3: מיקוד | G3: התמחות | H3: ציון ת. 1 | I3: ציון ת. 2 | J3: ציון ת. 3 | K3: ממוצע תרגילים | L3: ציון פרויקט | M3: ציון בחינה | N3: ציון סופי | O3: ציון במילים | P3: נשים מצטיינות | Q3: נשים או מצטיינים | R3: לא נכשלו | T3: קריטריונים לסינון מתקדם
B4: 298754355 | C4: רמי | D4: ז | E4: 8763456 | F4: 83934 | G4: חשבונאות | H4: 88 | I4: 90 | J4: 74 | K4: =AVERAGE(H4:J4) -> 84 | L4: 55 | M4: 45 | N4: =ROUND(H4*$C$39+I4*$C$40+J4*$C$41+L4*$C$42+M4*$C$43,0) -> 60 | O4: =IF(N4<$C$48,$B$47,IF(N4<$C$49,$B$48,$B$49)) -> עובר | P4: =IF(AND(D4=$C$53,O4=$B$49),"מלגה","") ->  | Q4: =IF(OR(D4=$C$53,O4=$B$49),"מלגה","") ->  | R4: =IF(NOT(N4<$C$48),"מלגה","") -> מלגה
B5: 947465892 | C5: שחר | D5: ז | E5: 3434324 | F5: 41466 | G5: חשבונאות | I5: 79 | J5: 99 | K5: =AVERAGE(H5:J5) -> 89 | L5: 86 | M5: 65 | N5: =ROUND(H5*$C$39+I5*$C$40+J5*$C$41+L5*$C$42+M5*$C$43,0) -> 70 | O5: =IF(N5<$C$48,$B$47,IF(N5<$C$49,$B$48,$B$49)) -> עובר | P5: =IF(AND(D5=$C$53,O5=$B$49),"מלגה","") ->  | Q5: =IF(OR(D5=$C$53,O5=$B$49),"מלגה","") ->  | R5: =IF(NOT(N5<$C$48),"מלגה","") -> מלגה
B6: =SUBTOTAL(3,B4:B5) -> 2 | D6: ז ספירה
B7: 388923057 | C7: מיכל | D7: נ | E7: 8743644 | F7: 44141 | G7: חשבונאות | H7: 60 | I7: 100 | J7: 80 | K7: =AVERAGE(H7:J7) -> 80 | L7: 40 | M7: 61 | N7: =ROUND(H7*$C$39+I7*$C$40+J7*$C$41+L7*$C$42+M7*$C$43,0) -> 60 | O7: =IF(N7<$C$48,$B$47,IF(N7<$C$49,$B$48,$B$49)) -> עובר | P7: =IF(AND(D7=$C$53,O7=$B$49),"מלגה","") ->  | Q7: =IF(OR(D7=$C$53,O7=$B$49),"מלגה","") -> מלגה | R7: =IF(NOT(N7<$C$48),"מלגה","") -> מלגה
B8: 983687692 | C8: שרון | D8: נ | E8: 6347234 | F8: 55235 | G8: חשבונאות | H8: 45 | I8: 60 | K8: =AVERAGE(H8:J8) -> 52.5 | L8: 99 | M8: 94 | N8: =ROUND(H8*$C$39+I8*$C$40+J8*$C$41+L8*$C$42+M8*$C$43,0) -> 78 | O8: =IF(N8<$C$48,$B$47,IF(N8<$C$49,$B$48,$B$49)) -> עובר | P8: =IF(AND(D8=$C$53,O8=$B$49),"מלגה","") ->  | Q8: =IF(OR(D8=$C$53,O8=$B$49),"מלגה","") -> מלגה | R8: =IF(NOT(N8<$C$48),"מלגה","") -> מלגה
B9: 244576280 | C9: שחר | D9: נ | E9: 3252524 | F9: 44451 | G9: חשבונאות | H9: 94 | I9: 100 | J9: 93 | K9: =AVERAGE(H9:J9) -> 95.66666667 | L9: 95 | M9: 100 | N9: =ROUND(H9*$C$39+I9*$C$40+J9*$C$41+L9*$C$42+M9*$C$43,0) -> 97 | O9: =IF(N9<$C$48,$B$47,IF(N9<$C$49,$B$48,$B$49)) -> מצטיין | P9: =IF(AND(D9=$C$53,O9=$B$49),"מלגה","") -> מלגה | Q9: =IF(OR(D9=$C$53,O9=$B$49),"מלגה","") -> מלגה | R9: =IF(NOT(N9<$C$48),"מלגה","") -> מלגה
B10: =SUBTOTAL(3,B7:B9) -> 3 | D10: נ ספירה
B11: =SUBTOTAL(3,B4:B9) -> 5 | G11: חשבונאות ספירה
B12: 987654321 | C12: יעקב | D12: ז | E12: 7563094 | F12: 86534 | G12: שיווק | H12: 91 | I12: 79 | J12: 85 | K12: =AVERAGE(H12:J12) -> 85 | L12: 100 | M12: 50 | N12: =ROUND(H12*$C$39+I12*$C$40+J12*$C$41+L12*$C$42+M12*$C$43,0) -> 76 | O12: =IF(N12<$C$48,$B$47,IF(N12<$C$49,$B$48,$B$49)) -> עובר | P12: =IF(AND(D12=$C$53,O12=$B$49),"מלגה","") ->  | Q12: =IF(OR(D12=$C$53,O12=$B$49),"מלגה","") ->  | R12: =IF(NOT(N12<$C$48),"מלגה","") -> מלגה
B13: 123456789 | C13: דניאל | D13: ז | E13: 9877665 | F13: 123 | G13: שיווק | H13: 89 | I13: 86 | J13: 99 | K13: =AVERAGE(H13:J13) -> 91.33333333 | L13: 99 | M13: 80 | N13: =ROUND(H13*$C$39+I13*$C$40+J13*$C$41+L13*$C$42+M13*$C$43,0) -> 89 | O13: =IF(N13<$C$48,$B$47,IF(N13<$C$49,$B$48,$B$49)) -> מצטיין | P13: =IF(AND(D13=$C$53,O13=$B$49),"מלגה","") ->  | Q13: =IF(OR(D13=$C$53,O13=$B$49),"מלגה","") -> מלגה | R13: =IF(NOT(N13<$C$48),"מלגה","") -> מלגה
B14: =SUBTOTAL(3,B12:B13) -> 2 | D14: ז ספירה
B15: 830998987 | C15: מיכל | D15: נ | E15: 3527439 | F15: 56324 | G15: שיווק | H15: 80 | J15: 87 | K15: =AVERAGE(H15:J15) -> 83.5 | L15: 90 | N15: =ROUND(H15*$C$39+I15*$C$40+J15*$C$41+L15*$C$42+M15*$C$43,0) -> 44 | O15: =IF(N15<$C$48,$B$47,IF(N15<$C$49,$B$48,$B$49)) -> נכשל | P15: =IF(AND(D15=$C$53,O15=$B$49),"מלגה","") ->  | Q15: =IF(OR(D15=$C$53,O15=$B$49),"מלגה","") -> מלגה | R15: =IF(NOT(N15<$C$48),"מלגה","") -> 
B16: 193878400 | C16: טלי | D16: נ | E16: 9876544 | F16: 70000 | G16: שיווק | H16: 81 | I16: 80 | J16: 82 | K16: =AVERAGE(H16:J16) -> 81 | L16: 81 | M16: 81 | N16: =ROUND(H16*$C$39+I16*$C$40+J16*$C$41+L16*$C$42+M16*$C$43,0) -> 81 | O16: =IF(N16<$C$48,$B$47,IF(N16<$C$49,$B$48,$B$49)) -> עובר | P16: =IF(AND(D16=$C$53,O16=$B$49),"מלגה","") ->  | Q16: =IF(OR(D16=$C$53,O16=$B$49),"מלגה","") -> מלגה | R16: =IF(NOT(N16<$C$48),"מלגה","") -> מלגה
B17: 658370843 | C17: יעל | D17: נ | E17: 2118758 | F17: 55326 | G17: שיווק | H17: 67 | I17: 99 | J17: 69 | K17: =AVERAGE(H17:J17) -> 78.33333333 | L17: 90 | M17: 85 | N17: =ROUND(H17*$C$39+I17*$C$40+J17*$C$41+L17*$C$42+M17*$C$43,0) -> 85 | O17: =IF(N17<$C$48,$B$47,IF(N17<$C$49,$B$48,$B$49)) -> מצטיין | P17: =IF(AND(D17=$C$53,O17=$B$49),"מלגה","") -> מלגה | Q17: =IF(OR(D17=$C$53,O17=$B$49),"מלגה","") -> מלגה | R17: =IF(NOT(N17<$C$48),"מלגה","") -> מלגה
B18: =SUBTOTAL(3,B15:B17) -> 3 | D18: נ ספירה
B19: =SUBTOTAL(3,B12:B17) -> 5 | G19: שיווק ספירה
B20: =SUBTOTAL(3,B4:B17) -> 10 | G20: ספירה כוללת
A22: חישובים | B22: ממוצע כיתתי | H22: =AVERAGE(H4:H17) -> 77.22222222 | I22: =AVERAGE(I4:I17) -> 85.88888889 | J22: 85.33333333 | K22: 82.03333333 | L22: 83.5 | M22: 73.44444444 | N22: 74 | P22: התפלגות ציונים סופיים
B23: חציון | H23: =MEDIAN(H4:H17) -> 81 | I23: =MEDIAN(I4:I17) -> 86 | J23: 85 | K23: 83.75 | L23: 90 | M23: 80 | N23: 77 | P23: 0-59 | Q23: 59 | R23: =FREQUENCY(N4:N17,Q23:Q28) -> 1
B24: שכיח | H24: =MODE(H4:H17) ->  | I24: =MODE(I4:I17) -> 79 | J24: 99 | L24: 99 | N24: 60 | P24: 60-74 | Q24: 74 | R24: 3
B25: מקסימום | H25: =MAX(H4:H17) -> 94 | I25: =MAX(I4:I17) -> 100 | J25: 99 | K25: 95.66666667 | L25: 100 | M25: 100 | N25: 97 | P25: 75-84 | Q25: 84 | R25: 3
B26: מינימום | H26: =MIN(H4:H17) -> 45 | I26: =MIN(I4:I17) -> 60 | J26: 69 | K26: 52.5 | L26: 40 | M26: 45 | N26: 44 | P26: 85-94 | Q26: 94 | R26: 2
B27: סטיית תקן | H27: =STDEV(H4:H17) -> 16.53615567 | I27: =STDEV(I4:I17) -> 13.16666667 | J27: 10.42832681 | K27: 11.67534069 | L27: 20.23885153 | M27: 19.19056481 | N27: 15.81841402 | P27: 95-100 | Q27: 100 | R27: 1
B28: שונות | H28: =VAR(H4:H17) -> 273.4444444 | I28: =VAR(I4:I17) -> 173.3611111 | J28: 108.75 | K28: 136.3135802 | L28: 409.6111111 | M28: 368.2777778 | N28: 250.2222222 | P28: מעל 100 | R28: 0
B29: שלחו תרגיל/ נבחנו | H29: =COUNT(H4:H17) -> 9 | I29: =COUNT(I4:I17) -> 9 | J29: 9 | K29: 10 | L29: 10 | M29: 9 | N29: 10
B30: נכשלו | H30: =COUNTIF(H4:H17,"<"&$C$48) -> 1 | I30: 0 | J30: 0 | K30: 1 | L30: 2 | M30: 2 | N30: 1 | P30: הסטודנט עם הציון הגבוה ביותר
B31: עברו | H31: =COUNTIFS(H4:H17,">="&$C$48,H4:H17,"<"&$C$49) -> 4 | I31: 4 | J31: 4 | K31: 5 | L31: 1 | M31: 4 | N31: 6 | P31: =LOOKUP(N25,N4:N17,C4:C17) -> יעל
B32: מצטיינים | H32: =COUNTIF(H4:H17,E49) -> 4 | I32: =COUNTIF(I4:I17,">="&$C$49) -> 5 | J32: 5 | K32: 4 | L32: 7 | M32: 3 | N32: 3
B33: מתוכם: | C33: =B52 -> סטודנטים | H33: =COUNTIFS($D$4:$D$17,$C$52,H4:H17,">="&$C$49) -> 3 | I33: 2 | J33: 3 | K33: 3 | L33: 3 | M33: 0 | N33: 1 | P33: המיקום של 'ציון סופי'
C34: =B53 -> סטודנטיות | H34: =COUNTIFS($D$4:$D$17,$C$53,H4:H17,$E$49) -> 1 | I34: 3 | J34: 2 | K34: 1 | L34: 4 | M34: 3 | N34: 2 | P34: =MATCH(N3,B3:R3,0) -> 13
B35: ס"ה סטודנטים | D35: =COUNTA(C4:C17) -> 10 | G35: ממוצע של מקבלי ציון "עובר": | H35: =AVERAGEIFS(H4:H17,H4:H17,">="&$C$48,H4:H17,"<"&$C$49) -> 72 | I35: 74.5 | J35: 76.25 | K35: 81.36666667 | L35: 81 | M35: 71.75 | N35: 70.83333333
B36: מתוכם: | C36: =B52 -> סטודנטים | D36: =COUNTIF(D4:D17,C52) -> 4 | G36: בממוצע: | H36: =AVERAGEIF($D$4:$D$17,$C52,H$4:H$17) -> 89.33333333 | I36: 83.5 | J36: 89.25 | K36: 87.33333333 | L36: 85 | M36: 60 | N36: 73.75 | P36: שליפת מידע עם index+match
C37: =B53 -> סטודנטיות | D37: =COUNTIF(D4:D17,C53) -> 6 | G37: בממוצע: | H37: 71.16666667 | I37: 87.8 | J37: 82.2 | K37: 78.5 | L37: 82.5 | M37: 84.2 | N37: 74.16666667 | P37: הזן ציון | R37: 81
P38: בחר מידע מבוקש | R38: שם הסטודנט
A39: טבלת משקולות | B39: משקל תרגיל 1 | C39: 0.1 | P39: תוצאה: | R39: =INDEX(B4:R17,MATCH(R37,N4:N17,0),MATCH(R38,B3:R3,0)) -> טלי
B40: משקל תרגיל 2 | C40: 0.1
B41: משקל תרגיל 3 | C41: 0.1
B42: משקל פרויקט | C42: 0.3 | O42: שליפת מידע עם Vlookup
B43: משקל מבחן | C43: 0.4 | O43: הזן ת.ז. | Q43: 123456789
B44: סה"כ | C44: =SUM(C39:C43) -> 1 | O44: בחר מידע מבוקש | Q44: ממוצע תרגילים | R44: =VLOOKUP($Q$43,$B$3:$R$17,MATCH(Q44,$B$3:$R$3,0),FALSE) -> 91.33333333
O45: בחר מידע מבוקש | Q45: ציון פרויקט | R45: =VLOOKUP($Q$43,$B$3:$R$17,MATCH(Q45,$B$3:$R$3,0),FALSE) -> 99
A46: טבלת עזר | C46: מ- | D46: עד | O46: בחר מידע מבוקש | Q46: ציון בחינה | R46: =VLOOKUP($Q$43,$B$3:$R$17,MATCH(Q46,$B$3:$R$3,0),FALSE) -> 80
B47: נכשל | C47: 0 | D47: 59.49 | O47: בחר מידע מבוקש | Q47: ציון סופי | R47: =VLOOKUP($Q$43,$B$3:$R$17,MATCH(Q47,$B$3:$R$3,0),FALSE) -> 89
B48: עובר | C48: 59.5 | D48: 84.49
B49: מצטיין | C49: =84.5 -> 84.5 | D49: 100 | E49: >=84.50
A51: סמלים | B51: מגדר
B52: סטודנטים | C52: ז
B53: סטודנטיות | C53: נ
B57: ת.ז. | C57: שם הסטודנט | D57: מגדר | E57: טלפון | F57: מיקוד | G57: התמחות | H57: ציון ת. 1 | I57: ציון ת. 2 | J57: ציון ת. 3 | K57: ממוצע תרגילים | L57: ציון פרויקט | M57: ציון בחינה | N57: ציון סופי | O57: ציון במילים | P57: נשים מצטיינות | Q57: נשים או מצטיינים | R57: לא נכשלו | T57: מגדר
B58: 193878400 | C58: טלי | D58: נ | E58: 9876544 | F58: 70000 | G58: שיווק | H58: 81 | I58: 80 | J58: 82 | K58: 81 | L58: 81 | M58: 81 | N58: 81 | O58: עובר | Q58: מלגה | R58: מלגה | T58: נ
B59: 244576280 | C59: שחר | D59: נ | E59: 3252524 | F59: 44451 | G59: חשבונאות | H59: 94 | I59: 100 | J59: 93 | K59: 95.66666667 | L59: 95 | M59: 100 | N59: 97 | O59: מצטיין | P59: מלגה | Q59: מלגה | R59: מלגה
B60: 388923057 | C60: מיכל | D60: נ | E60: 8743644 | F60: 44141 | G60: חשבונאות | H60: 60 | I60: 100 | J60: 80 | K60: 80 | L60: 40 | M60: 61 | N60: 60 | O60: עובר | Q60: מלגה | R60: מלגה
B61: 658370843 | C61: יעל | D61: נ | E61: 2118758 | F61: 55326 | G61: שיווק | H61: 67 | I61: 99 | J61: 69 | K61: 78.33333333 | L61: 90 | M61: 85 | N61: 85 | O61: מצטיין | P61: מלגה | Q61: מלגה | R61: מלגה
B62: 830998987 | C62: מיכל | D62: נ | E62: 3527439 | F62: 56324 | G62: שיווק | H62: 80 | J62: 87 | K62: 83.5 | L62: 90 | N62: 44 | O62: נכשל | Q62: מלגה
B63: 983687692 | C63: שרון | D63: נ | E63: 6347234 | F63: 55235 | G63: חשבונאות | H63: 45 | I63: 60 | K63: 52.5 | L63: 99 | M63: 94 | N63: 78 | O63: עובר | Q63: מלגה | R63: מלגה
B65: ת.ז. | C65: שם הסטודנט | T65: מגדר
B66: 123456789 | C66: דניאל | T66: ז
B67: 298754355 | C67: רמי
B68: 947465892 | C68: שחר
B69: 987654321 | C69: יעקב
B71: שם הסטודנט | C71: ציון סופי | T71: מגדר | U71: ציון במילים
B72: שחר | C72: 97 | T72: נ | U72: מצטיין
B73: יעל | C73: 85
B75: שם הסטודנט | C75: ציון סופי | T75: ציון סופי
B76: דניאל | C76: 89 | T76: >=85
B77: שחר | C77: 97 | T77: <60
B78: יעל | C78: 85
B79: מיכל | C79: 44
B81: שם הסטודנט | C81: ציון בחינה | T81: ציון בחינה | U81: ציון בחינה
B82: דניאל | C82: 80 | T82: >=60 | U82: <85
B83: טלי | C83: 81
B84: מיכל | C84: 61
B85: שחר | C85: 65
B87: שם הסטודנט | T87: שם הסטודנט
B88: יעל | T88: י*
B89: יעקב
B91: שם הסטודנט | C91: מגדר | D91: ציון סופי | T91: מגדר | U91: ציון במילים
B92: דניאל | C92: ז | D92: 89 | T92: נ
B93: טלי | C93: נ | D93: 81 | T93: ז | U93: מצטיין
B94: שחר | C94: נ | D94: 97
B95: מיכל | C95: נ | D95: 60
B96: יעל | C96: נ | D96: 85
B97: מיכל | C97: נ | D97: 44
B98: שרון | C98: נ | D98: 78
B100: שם הסטודנט | C100: ציון סופי
B101: דניאל | C101: 89 | T101: =N4>$N$22 -> FALSE
B102: טלי | C102: 81
B103: שחר | C103: 97
B104: יעל | C104: 85
B105: שרון | C105: 78
B106: יעקב | C106: 76
B108: שם הסטודנט | C108: ציון סופי | T108: ציון סופי
B109: דניאל | C109: 89 | T109: =">"&AVERAGE(N4:N17) -> >74
B110: טלי | C110: 81
B111: שחר | C111: 97
B112: יעל | C112: 85
B113: שרון | C113: 78
B114: יעקב | C114: 76

Sheet פתרון 2-5
A1: תרגול באקסל
A3: נתונים | B3: ת.ז. | C3: שם הסטודנט | D3: מגדר | E3: טלפון | F3: מיקוד | G3: התמחות | H3: ציון ת. 1 | I3: ציון ת. 2 | J3: ציון ת. 3 | K3: ממוצע תרגילים | L3: ציון פרויקט | M3: ציון בחינה | N3: ציון סופי | O3: ציון במילים | P3: נשים מצטיינות | Q3: נשים או מצטיינים | R3: לא נכשלו | T3: קריטריונים לסינון מתקדם
B4: 298754355 | C4: רמי | D4: ז | E4: 8763456 | F4: 83934 | G4: חשבונאות | H4: 88 | I4: 90 | J4: 74 | K4: =AVERAGE(H4:J4) -> 84 | L4: 55 | M4: 45 | N4: =ROUND(H4*$C$38+I4*$C$39+J4*$C$40+L4*$C$41+M4*$C$42,0) -> 60 | O4: =IF(N4<$C$47,$B$46,IF(N4<$C$48,$B$47,$B$48)) -> עובר | P4: =IF(AND(D4=$C$52,O4=$B$48),"מלגה","") ->  | Q4: =IF(OR(D4=$C$52,O4=$B$48),"מלגה","") ->  | R4: =IF(NOT(N4<$C$47),"מלגה","") -> מלגה
B5: 947465892 | C5: שחר | D5: ז | E5: 3434324 | F5: 41466 | G5: חשבונאות | I5: 79 | J5: 99 | K5: =AVERAGE(H5:J5) -> 89 | L5: 86 | M5: 65 | N5: =ROUND(H5*$C$38+I5*$C$39+J5*$C$40+L5*$C$41+M5*$C$42,0) -> 70 | O5: =IF(N5<$C$47,$B$46,IF(N5<$C$48,$B$47,$B$48)) -> עובר | P5: =IF(AND(D5=$C$52,O5=$B$48),"מלגה","") ->  | Q5: =IF(OR(D5=$C$52,O5=$B$48),"מלגה","") ->  | R5: =IF(NOT(N5<$C$47),"מלגה","") -> מלגה
B6: 987654321 | C6: יעקב | D6: ז | E6: 7563094 | F6: 86534 | G6: שיווק | H6: 91 | I6: 79 | J6: 85 | K6: =AVERAGE(H6:J6) -> 85 | L6: 100 | M6: 50 | N6: =ROUND(H6*$C$38+I6*$C$39+J6*$C$40+L6*$C$41+M6*$C$42,0) -> 76 | O6: =IF(N6<$C$47,$B$46,IF(N6<$C$48,$B$47,$B$48)) -> עובר | P6: =IF(AND(D6=$C$52,O6=$B$48),"מלגה","") ->  | Q6: =IF(OR(D6=$C$52,O6=$B$48),"מלגה","") ->  | R6: =IF(NOT(N6<$C$47),"מלגה","") -> מלגה
B7: 123456789 | C7: דניאל | D7: ז | E7: 9877665 | F7: 123 | G7: שיווק | H7: 89 | I7: 86 | J7: 99 | K7: =AVERAGE(H7:J7) -> 91.33333333 | L7: 99 | M7: 80 | N7: =ROUND(H7*$C$38+I7*$C$39+J7*$C$40+L7*$C$41+M7*$C$42,0) -> 89 | O7: =IF(N7<$C$47,$B$46,IF(N7<$C$48,$B$47,$B$48)) -> מצטיין | P7: =IF(AND(D7=$C$52,O7=$B$48),"מלגה","") ->  | Q7: =IF(OR(D7=$C$52,O7=$B$48),"מלגה","") -> מלגה | R7: =IF(NOT(N7<$C$47),"מלגה","") -> מלגה
D8: ז ממוצע | K8: =SUBTOTAL(1,K4:K7) -> 87.33333333 | L8: =SUBTOTAL(1,L4:L7) -> 85 | M8: =SUBTOTAL(1,M4:M7) -> 60 | N8: =SUBTOTAL(1,N4:N7) -> 73.75
B9: =SUBTOTAL(3,B4:B7) -> 4 | D9: ז ספירה
B10: 388923057 | C10: מיכל | D10: נ | E10: 8743644 | F10: 44141 | G10: חשבונאות | H10: 60 | I10: 100 | J10: 80 | K10: =AVERAGE(H10:J10) -> 80 | L10: 40 | M10: 61 | N10: =ROUND(H10*$C$38+I10*$C$39+J10*$C$40+L10*$C$41+M10*$C$42,0) -> 60 | O10: =IF(N10<$C$47,$B$46,IF(N10<$C$48,$B$47,$B$48)) -> עובר | P10: =IF(AND(D10=$C$52,O10=$B$48),"מלגה","") ->  | Q10: =IF(OR(D10=$C$52,O10=$B$48),"מלגה","") -> מלגה | R10: =IF(NOT(N10<$C$47),"מלגה","") -> מלגה
B11: 983687692 | C11: שרון | D11: נ | E11: 6347234 | F11: 55235 | G11: חשבונאות | H11: 45 | I11: 60 | K11: 52.5 | L11: 99 | M11: 94 | N11: 78 | O11: עובר | Q11: מלגה | R11: מלגה
B12: 244576280 | C12: שחר | D12: נ | E12: 3252524 | F12: 44451 | G12: חשבונאות | H12: 94 | I12: 100 | J12: 93 | K12: 95.66666667 | L12: 95 | M12: 100 | N12: 97 | O12: מצטיין | P12: מלגה | Q12: מלגה | R12: מלגה
B13: 830998987 | C13: מיכל | D13: נ | E13: 3527439 | F13: 56324 | G13: שיווק | H13: 80 | J13: 87 | K13: 83.5 | L13: 90 | N13: 44 | O13: נכשל | Q13: מלגה
B14: 193878400 | C14: טלי | D14: נ | E14: 9876544 | F14: 70000 | G14: שיווק | H14: 81 | I14: 80 | J14: 82 | K14: 81 | L14: 81 | M14: 81 | N14: 81 | O14: עובר | Q14: מלגה | R14: מלגה
B15: 658370843 | C15: יעל | D15: נ | E15: 2118758 | F15: 55326 | G15: שיווק | H15: 67 | I15: 99 | J15: 69 | K15: 78.33333333 | L15: 90 | M15: 85 | N15: 85 | O15: מצטיין | P15: מלגה | Q15: מלגה | R15: מלגה
D16: נ ממוצע | K16: =SUBTOTAL(1,K10:K15) -> 78.5 | L16: =SUBTOTAL(1,L10:L15) -> 82.5 | M16: =SUBTOTAL(1,M10:M15) -> 84.2 | N16: =SUBTOTAL(1,N10:N15) -> 74.16666667
B17: =SUBTOTAL(3,B10:B15) -> 6 | D17: נ ספירה
D18: ממוצע כולל | K18: =SUBTOTAL(1,K4:K15) -> 82.03333333 | L18: =SUBTOTAL(1,L4:L15) -> 83.5 | M18: =SUBTOTAL(1,M4:M15) -> 73.44444444 | N18: =SUBTOTAL(1,N4:N15) -> 74
B19: =SUBTOTAL(3,B4:B15) -> 10 | D19: ספירה כוללת
A21: חישובים | B21: ממוצע כיתתי | H21: =AVERAGE(H4:H15) -> 77.22222222 | I21: =AVERAGE(I4:I15) -> 85.88888889 | J21: 85.33333333 | K21: 82.51515152 | L21: 83.63636364 | M21: 72.1 | N21: 73.97727273 | P21: התפלגות ציונים סופיים
B22: חציון | H22: =MEDIAN(H4:H15) -> 81 | I22: =MEDIAN(I4:I15) -> 86 | J22: 85 | K22: 84 | L22: 90 | M22: 72.5 | N22: 76 | P22: 0-59 | Q22: 59 | R22: =FREQUENCY(N4:N15,Q22:Q27) -> 1
B23: שכיח | H23: =MODE(H4:H15) ->  | I23: =MODE(I4:I15) -> 79 | J23: 99 | L23: 99 | N23: 60 | P23: 60-74 | Q23: 74 | R23: 4
B24: מקסימום | H24: =MAX(H4:H15) -> 94 | I24: =MAX(I4:I15) -> 100 | J24: 99 | K24: 95.66666667 | L24: 100 | M24: 100 | N24: 97 | P24: 75-84 | Q24: 84 | R24: 3
B25: מינימום | H25: =MIN(H4:H15) -> 45 | I25: =MIN(I4:I15) -> 60 | J25: 69 | K25: 52.5 | L25: 40 | M25: 45 | N25: 44 | P25: 85-94 | Q25: 94 | R25: 2
B26: סטיית תקן | H26: =STDEV(H4:H15) -> 16.53615567 | I26: =STDEV(I4:I15) -> 13.16666667 | J26: 10.42832681 | K26: 11.19088283 | L26: 19.20558631 | M26: 18.5858369 | N26: 15.00685449 | P26: 95-100 | Q26: 100 | R26: 1
B27: שונות | H27: =VAR(H4:H15) -> 273.4444444 | I27: =VAR(I4:I15) -> 173.3611111 | J27: 108.75 | K27: 125.2358586 | L27: 368.8545455 | M27: 345.4333333 | N27: 225.2056818 | P27: מעל 100 | R27: 0
B28: שלחו תרגיל/ נבחנו | H28: =COUNT(H4:H15) -> 9 | I28: =COUNT(I4:I15) -> 9 | J28: 9 | K28: 11 | L28: 11 | M28: 10 | N28: 11
B29: נכשלו | H29: =COUNTIF(H4:H15,"<"&$C$47) -> 1 | I29: 0 | J29: 0 | K29: 1 | L29: 2 | M29: 2 | N29: 1 | P29: הסטודנט עם הציון הגבוה ביותר
B30: עברו | H30: =COUNTIFS(H4:H15,">="&$C$47,H4:H15,"<"&$C$48) -> 4 | I30: 4 | J30: 4 | K30: 5 | L30: 1 | M30: 5 | N30: 7 | P30: =LOOKUP(N24,N4:N15,C4:C15) -> יעל
B31: מצטיינים | H31: =COUNTIF(H4:H15,E48) -> 4 | I31: =COUNTIF(I4:I15,">="&$C$48) -> 5 | J31: 5 | K31: 5 | L31: 8 | M31: 3 | N31: 3
B32: מתוכם: | C32: =B51 -> סטודנטים | H32: =COUNTIFS($D$4:$D$15,$C$51,H4:H15,">="&$C$48) -> 3 | I32: 2 | J32: 3 | K32: 3 | L32: 3 | M32: 0 | N32: 1 | P32: המיקום של 'ציון סופי'
C33: =B52 -> סטודנטיות | H33: =COUNTIFS($D$4:$D$15,$C$52,H4:H15,$E$48) -> 1 | I33: 3 | J33: 2 | K33: 1 | L33: 4 | M33: 3 | N33: 2 | P33: =MATCH(N3,B3:R3,0) -> 13
B34: ס"ה סטודנטים | D34: =COUNTA(C4:C15) -> 10 | G34: ממוצע של מקבלי ציון "עובר": | H34: =AVERAGEIFS(H4:H15,H4:H15,">="&$C$47,H4:H15,"<"&$C$48) -> 72 | I34: 74.5 | J34: 76.25 | K34: 81.36666667 | L34: 81 | M34: 69.4 | N34: 71.25
B35: מתוכם: | C35: =B51 -> סטודנטים | D35: =COUNTIF(D4:D15,C51) -> 4 | G35: בממוצע: | H35: =AVERAGEIF($D$4:$D$15,$C51,H$4:H$15) -> 89.33333333 | I35: 83.5 | J35: 89.25 | K35: 87.33333333 | L35: 85 | M35: 60 | N35: 73.75 | P35: שליפת מידע עם index+match
C36: =B52 -> סטודנטיות | D36: =COUNTIF(D4:D15,C52) -> 6 | G36: בממוצע: | H36: 71.16666667 | I36: 87.8 | J36: 82.2 | K36: 78.5 | L36: 82.5 | M36: 84.2 | N36: 74.16666667 | P36: הזן ציון | R36: 81
P37: בחר מידע מבוקש | R37: שם הסטודנט
A38: טבלת משקולות | B38: משקל תרגיל 1 | C38: 0.1 | P38: תוצאה: | R38: =INDEX(B4:R15,MATCH(R36,N4:N15,0),MATCH(R37,B3:R3,0)) -> טלי
B39: משקל תרגיל 2 | C39: 0.1
B40: משקל תרגיל 3 | C40: 0.1
B41: משקל פרויקט | C41: 0.3 | O41: שליפת מידע עם Vlookup
B42: משקל מבחן | C42: 0.4 | O42: הזן ת.ז. | Q42: 123456789
B43: סה"כ | C43: =SUM(C38:C42) -> 1 | O43: בחר מידע מבוקש | Q43: ממוצע תרגילים | R43: =VLOOKUP($Q$42,$B$3:$R$15,MATCH(Q43,$B$3:$R$3,0),FALSE) -> 91.33333333
O44: בחר מידע מבוקש | Q44: ציון פרויקט | R44: =VLOOKUP($Q$42,$B$3:$R$15,MATCH(Q44,$B$3:$R$3,0),FALSE) -> 99
A45: טבלת עזר | C45: מ- | D45: עד | O45: בחר מידע מבוקש | Q45: ציון בחינה | R45: =VLOOKUP($Q$42,$B$3:$R$15,MATCH(Q45,$B$3:$R$3,0),FALSE) -> 80
B46: נכשל | C46: 0 | D46: 59.49 | O46: בחר מידע מבוקש | Q46: ציון סופי | R46: =VLOOKUP($Q$42,$B$3:$R$15,MATCH(Q46,$B$3:$R$3,0),FALSE) -> 89
B47: עובר | C47: 59.5 | D47: 84.49
B48: מצטיין | C48: =84.5 -> 84.5 | D48: 100 | E48: >=84.50
A50: סמלים | B50: מגדר
B51: סטודנטים | C51: ז
B52: סטודנטיות | C52: נ
B56: ת.ז. | C56: שם הסטודנט | D56: מגדר | E56: טלפון | F56: מיקוד | G56: התמחות | H56: ציון ת. 1 | I56: ציון ת. 2 | J56: ציון ת. 3 | K56: ממוצע תרגילים | L56: ציון פרויקט | M56: ציון בחינה | N56: ציון סופי | O56: ציון במילים | P56: נשים מצטיינות | Q56: נשים או מצטיינים | R56: לא נכשלו | T56: מגדר
B57: 193878400 | C57: טלי | D57: נ | E57: 9876544 | F57: 70000 | G57: שיווק | H57: 81 | I57: 80 | J57: 82 | K57: 81 | L57: 81 | M57: 81 | N57: 81 | O57: עובר | Q57: מלגה | R57: מלגה | T57: נ
B58: 244576280 | C58: שחר | D58: נ | E58: 3252524 | F58: 44451 | G58: חשבונאות | H58: 94 | I58: 100 | J58: 93 | K58: 95.66666667 | L58: 95 | M58: 100 | N58: 97 | O58: מצטיין | P58: מלגה | Q58: מלגה | R58: מלגה
B59: 388923057 | C59: מיכל | D59: נ | E59: 8743644 | F59: 44141 | G59: חשבונאות | H59: 60 | I59: 100 | J59: 80 | K59: 80 | L59: 40 | M59: 61 | N59: 60 | O59: עובר | Q59: מלגה | R59: מלגה
B60: 658370843 | C60: יעל | D60: נ | E60: 2118758 | F60: 55326 | G60: שיווק | H60: 67 | I60: 99 | J60: 69 | K60: 78.33333333 | L60: 90 | M60: 85 | N60: 85 | O60: מצטיין | P60: מלגה | Q60: מלגה | R60: מלגה
B61: 830998987 | C61: מיכל | D61: נ | E61: 3527439 | F61: 56324 | G61: שיווק | H61: 80 | J61: 87 | K61: 83.5 | L61: 90 | N61: 44 | O61: נכשל | Q61: מלגה
B62: 983687692 | C62: שרון | D62: נ | E62: 6347234 | F62: 55235 | G62: חשבונאות | H62: 45 | I62: 60 | K62: 52.5 | L62: 99 | M62: 94 | N62: 78 | O62: עובר | Q62: מלגה | R62: מלגה
B64: ת.ז. | C64: שם הסטודנט | T64: מגדר
B65: 123456789 | C65: דניאל | T65: ז
B66: 298754355 | C66: רמי
B67: 947465892 | C67: שחר
B68: 987654321 | C68: יעקב
B70: שם הסטודנט | C70: ציון סופי | T70: מגדר | U70: ציון במילים
B71: שחר | C71: 97 | T71: נ | U71: מצטיין
B72: יעל | C72: 85
B74: שם הסטודנט | C74: ציון סופי | T74: ציון סופי
B75: דניאל | C75: 89 | T75: >=85
B76: שחר | C76: 97 | T76: <60
B77: יעל | C77: 85
B78: מיכל | C78: 44
B80: שם הסטודנט | C80: ציון בחינה | T80: ציון בחינה | U80: ציון בחינה
B81: דניאל | C81: 80 | T81: >=60 | U81: <85
B82: טלי | C82: 81
B83: מיכל | C83: 61
B84: שחר | C84: 65
B86: שם הסטודנט | T86: שם הסטודנט
B87: יעל | T87: י*
B88: יעקב
B90: שם הסטודנט | C90: מגדר | D90: ציון סופי | T90: מגדר | U90: ציון במילים
B91: דניאל | C91: ז | D91: 89 | T91: נ
B92: טלי | C92: נ | D92: 81 | T92: ז | U92: מצטיין
B93: שחר | C93: נ | D93: 97
B94: מיכל | C94: נ | D94: 60
B95: יעל | C95: נ | D95: 85
B96: מיכל | C96: נ | D96: 44
B97: שרון | C97: נ | D97: 78
B99: שם הסטודנט | C99: ציון סופי
B100: דניאל | C100: 89 | T100: =N4>$N$21 -> FALSE
B101: טלי | C101: 81
B102: שחר | C102: 97
B103: יעל | C103: 85
B104: שרון | C104: 78
B105: יעקב | C105: 76
B107: שם הסטודנט | C107: ציון סופי | T107: ציון סופי
B108: דניאל | C108: 89 | T108: =">"&AVERAGE(N4:N15) -> >73.9772727272727
B109: טלי | C109: 81
B110: שחר | C110: 97
B111: יעל | C111: 85
B112: שרון | C112: 78
B113: יעקב | C113: 76

Sheet 6-27
A1: נעלי ניצן
A2: שם הפריט | B2: סוג | C2: עלות ללא מע"מ | D2: מחיר לצרכן ללא מע"מ | E2: כמות במלאי | F2: ערך המלאי | G2: התראת עודף במלאי | H2: שיעור הנחה לצרכן | I2: מחיר לצרכן לאחר הנחה כולל מע"מ
A3: נייקי 920 | B3: טניס נשים | C3: 325 | D3: 650 | E3: 18 | F3: =MIN(D3,C3)*E3 -> 5850 | G3: =IF(E3>=$B$40,$B$41,"") ->  | H3: =VLOOKUP(B3,$A$24:$B$34,2,0) -> 0.25 | I3: =D3*(1-H3)*(1+$B$37) -> 565.5
A4: ניו בלנס 605 | B4: ריצה גברים | C4: 275 | D4: 550 | E4: 38 | F4: =MIN(D4,C4)*E4 -> 10450 | H4: =VLOOKUP(B4,$A$24:$B$34,2,0) -> 0.15 | I4: 542.3
A5: נייקי 815 | B5: הליכה גברים | C5: 225 | D5: 450 | E5: 58 | F5: 13050 | G5: מוצר מועדף | H5: 0.45 | I5: 287.1
A6: דיאדורה XL | B6: טניס ילדים | C6: 175 | D6: 350 | E6: 78 | F6: 13650 | G6: מוצר מועדף | H6: 0.2 | I6: 324.8
A7: פומה 6Z | B7: הליכה נשים | C7: 150 | D7: 300 | E7: 98 | F7: 14700 | G7: מוצר מועדף | H7: 0.4 | I7: 208.8
A8: נייקי 800 | B8: ריצה נשים | C8: 325 | D8: 650 | E8: 18 | F8: 5850 | H8: 0.1 | I8: 678.6
A9: ניו בלנס 625 | B9: ריצה גברים | C9: 275 | D9: 550 | E9: 38 | F9: 10450 | H9: 0.15 | I9: 542.3
A10: נייקי 815 | B10: הליכה גברים | C10: 225 | D10: 450 | E10: 58 | F10: 13050 | G10: מוצר מועדף | H10: 0.45 | I10: 287.1
A11: דיאדורה KL | B11: ריצה ילדים | C11: 175 | D11: 350 | E11: 78 | F11: 13650 | G11: מוצר מועדף | H11: 0.05 | I11: 385.7
A12: פומה 13B | B12: טניס נשים | C12: 150 | D12: 300 | E12: 98 | F12: 14700 | G12: מוצר מועדף | H12: 0.25 | I12: 261
A13: נייקי 754 | B13: ריצה נשים | C13: 325 | D13: 650 | E13: 18 | F13: 5850 | H13: 0.1 | I13: 678.6
A14: ניו בלנס 555 | B14: ריצה גברים | C14: 275 | D14: 550 | E14: 38 | F14: 10450 | H14: 0.15 | I14: 542.3
A15: נייקי 987 | B15: הליכה גברים | C15: 225 | D15: 450 | E15: 58 | F15: 13050 | G15: מוצר מועדף | H15: 0.45 | I15: 287.1
A16: דיאדורה MW | B16: טניס ילדים | C16: 175 | D16: 350 | E16: 78 | F16: 13650 | G16: מוצר מועדף | H16: 0.2 | I16: 324.8
A17: פומה 12C | B17: ריצה נשים | C17: 150 | D17: 300 | E17: 98 | F17: 14700 | G17: מוצר מועדף | H17: 0.1 | I17: 313.2
A19: ממוצע | D19: =AVERAGE(D3:D17) -> 460 | E19: =AVERAGE(E3:E17) -> 58 | F19: =AVERAGE(F3:F17) -> 11540 | H19: =AVERAGE(H3:H17) -> 0.23 | I19: =AVERAGE(I3:I17) -> 415.28
A20: מינימום | D20: =MIN(D3:D17) -> 300 | E20: =MIN(E3:E17) -> 18 | F20: =MIN(F3:F17) -> 5850 | H20: =MIN(H3:H17) -> 0.05 | I20: =MIN(I3:I17) -> 208.8
A21: מקסימום | D21: =MAX(D3:D17) -> 650 | E21: =MAX(E3:E17) -> 98 | F21: =MAX(F3:F17) -> 14700 | H21: =MAX(H3:H17) -> 0.45 | I21: =MAX(I3:I17) -> 678.6
A22: הכמות במלאי של פריטים מסוג: | D22: ריצה נשים | E22: =SUMIF(B3:B17,D22,E3:E17) -> 134
A24: סוג מוצר | B24: הנחה
A25: ריצה ילדים | B25: 0.05
A26: ריצה נשים | B26: 0.1
A27: ריצה גברים | B27: 0.15
A28: טניס ילדים | B28: 0.2
A29: טניס נשים | B29: 0.25
A30: טניס גברים | B30: 0.3
A31: הליכה ילדים | B31: 0.35
A32: הליכה נשים | B32: 0.4
A33: הליכה גברים | B33: 0.45
A34: קרוקס | B34: 0.5
A36: תאי עזר
A37: מע"מ | B37: 0.16
A39: התראה לעודפי מלאי:
A40: מעל כמות | B40: 40
A41: תופיע ההודעה | B41: מוצר מועדף

Sheet פתרון 6-26
B3: ערכים
A4: תוויות שורה | B4: ס"ה הכמות במלאי | C4: אחוז מתוך ס"ה הכמות במלאי | D4: ממוצע הכמות במלאי | E4: ס"ה ערך המלאי | F4: ממוצע ערך המלאי
A5: ריצה ילדים | B5: 78 | C5: 0.08965517241 | D5: 78 | E5: 13650 | F5: 13650
A6: דיאדורה KL | B6: 78 | C6: 0.08965517241 | D6: 78 | E6: 13650 | F6: 13650
A7: הליכה נשים | B7: 98 | C7: 0.1126436782 | D7: 98 | E7: 14700 | F7: 14700
A8: פומה 6Z | B8: 98 | C8: 0.1126436782 | D8: 98 | E8: 14700 | F8: 14700
A9: ריצה גברים | B9: 114 | C9: 0.1310344828 | D9: 38 | E9: 31350 | F9: 10450
A10: ניו בלנס 555 | B10: 38 | C10: 0.04367816092 | D10: 38 | E10: 10450 | F10: 10450
A11: ניו בלנס 605 | B11: 38 | C11: 0.04367816092 | D11: 38 | E11: 10450 | F11: 10450
A12: ניו בלנס 625 | B12: 38 | C12: 0.04367816092 | D12: 38 | E12: 10450 | F12: 10450
A13: טניס נשים | B13: 116 | C13: 0.1333333333 | D13: 58 | E13: 20550 | F13: 10275
A14: נייקי 920 | B14: 18 | C14: 0.02068965517 | D14: 18 | E14: 5850 | F14: 5850
A15: פומה 13B | B15: 98 | C15: 0.1126436782 | D15: 98 | E15: 14700 | F15: 14700
A16: ריצה נשים | B16: 134 | C16: 0.1540229885 | D16: 44.66666667 | E16: 26400 | F16: 8800
A17: נייקי 754 | B17: 18 | C17: 0.02068965517 | D17: 18 | E17: 5850 | F17: 5850
A18: נייקי 800 | B18: 18 | C18: 0.02068965517 | D18: 18 | E18: 5850 | F18: 5850
A19: פומה 12C | B19: 98 | C19: 0.1126436782 | D19: 98 | E19: 14700 | F19: 14700
A20: טניס ילדים | B20: 156 | C20: 0.1793103448 | D20: 78 | E20: 27300 | F20: 13650
A21: דיאדורה MW | B21: 78 | C21: 0.08965517241 | D21: 78 | E21: 13650 | F21: 13650
A22: דיאדורה XL | B22: 78 | C22: 0.08965517241 | D22: 78 | E22: 13650 | F22: 13650
A23: הליכה גברים | B23: 174 | C23: 0.2 | D23: 58 | E23: 39150 | F23: 13050
A24: נייקי 815 | B24: 116 | C24: 0.1333333333 | D24: 58 | E24: 26100 | F24: 13050
A25: נייקי 987 | B25: 58 | C25: 0.06666666667 | D25: 58 | E25: 13050 | F25: 13050
A26: סכום כולל | B26: 870 | C26: 1 | D26: 58 | E26: 173100 | F26: 11540

Sheet פתרון 27
B1: ערכים
A2: תוויות שורה | B2: ממוצע של עלות ללא מע"מ | C2: ממוצע של מחיר לצרכן ללא מע"מ
A3: הליכה גברים | B3: 225 | C3: 450
A4: הליכה נשים | B4: 150 | C4: 300
A5: טניס ילדים | B5: 175 | C5: 350
A6: טניס נשים | B6: 237.5 | C6: 475
A7: ריצה גברים | B7: 275 | C7: 550
A8: ריצה ילדים | B8: 175 | C8: 350
A9: ריצה נשים | B9: 266.6666667 | C9: 533.3333333
A10: סכום כולל | B10: 230 | C10: 460

Sheet 28-31
A1: תרגול באקסל
A3: נתונים | B3: ת.ז. | C3: שם הסטודנט | D3: מגדר | E3: טלפון | F3: מיקוד | G3: התמחות | H3: ציון ת. 1 | I3: ציון ת. 2 | J3: ציון ת. 3 | K3: ממוצע תרגילים | L3: ציון פרויקט | M3: ציון בחינה | N3: ציון סופי | O3: ציון במילים | P3: נשים מצטיינות | Q3: נשים או מצטיינים | R3: לא נכשלו | T3: קריטריונים לסינון מתקדם
B4: 123456789 | C4: דניאל | D4: ז | E4: 9877665 | F4: 123 | G4: שיווק | H4: 89 | I4: 86 | J4: 99 | K4: =AVERAGE(H4:J4) -> 91.33333333 | L4: 99 | M4: 80 | N4: =ROUND(H4*$C$32+I4*$C$33+J4*$C$34+L4*$C$35+M4*$C$36,0) -> 89 | O4: =IF(N4<$C$41,$B$40,IF(N4<$C$42,$B$41,$B$42)) -> מצטיין | P4: =IF(AND(D4=$C$46,O4=$B$42),"מלגה","") ->  | Q4: =IF(OR(D4=$C$46,O4=$B$42),"מלגה","") -> מלגה | R4: =IF(NOT(N4<$C$41),"מלגה","") -> מלגה
B5: 193878400 | C5: טלי | D5: נ | E5: 9876544 | F5: 70000 | G5: שיווק | H5: 81 | I5: 80 | J5: 82 | K5: 81 | L5: 81 | M5: 81 | N5: 81 | O5: עובר | Q5: מלגה | R5: מלגה
B6: 244576280 | C6: שחר | D6: נ | E6: 3252524 | F6: 44451 | G6: חשבונאות | H6: 94 | I6: 100 | J6: 93 | K6: 95.66666667 | L6: 95 | M6: 100 | N6: 97 | O6: מצטיין | P6: מלגה | Q6: מלגה | R6: מלגה
B7: 298754355 | C7: רמי | D7: ז | E7: 8763456 | F7: 83934 | G7: חשבונאות | H7: 88 | I7: 90 | J7: 74 | K7: 84 | L7: 55 | M7: 45 | N7: 60 | O7: עובר | R7: מלגה
B8: 388923057 | C8: מיכל | D8: נ | E8: 8743644 | F8: 44141 | G8: חשבונאות | H8: 60 | I8: 100 | J8: 80 | K8: 80 | L8: 40 | M8: 61 | N8: 60 | O8: עובר | Q8: מלגה | R8: מלגה
B9: 658370843 | C9: יעל | D9: נ | E9: 2118758 | F9: 55326 | G9: שיווק | H9: 67 | I9: 99 | J9: 69 | K9: 78.33333333 | L9: 90 | M9: 85 | N9: 85 | O9: מצטיין | P9: מלגה | Q9: מלגה | R9: מלגה
B10: 830998987 | C10: מיכל | D10: נ | E10: 3527439 | F10: 56324 | G10: שיווק | H10: 80 | J10: 87 | K10: 83.5 | L10: 90 | N10: 44 | O10: נכשל | Q10: מלגה
B11: 947465892 | C11: שחר | D11: ז | E11: 3434324 | F11: 41466 | G11: חשבונאות | I11: 79 | J11: 99 | K11: 89 | L11: 86 | M11: 65 | N11: 70 | O11: עובר | R11: מלגה
B12: 983687692 | C12: שרון | D12: נ | E12: 6347234 | F12: 55235 | G12: חשבונאות | H12: 45 | I12: 60 | K12: 52.5 | L12: 99 | M12: 94 | N12: 78 | O12: עובר | Q12: מלגה | R12: מלגה
B13: 987654321 | C13: יעקב | D13: ז | E13: 7563094 | F13: 86534 | G13: שיווק | H13: 91 | I13: 79 | J13: 85 | K13: 85 | L13: 100 | M13: 50 | N13: 76 | O13: עובר | R13: מלגה
A15: חישובים | B15: ממוצע כיתתי | H15: =AVERAGE(H4:H13) -> 77.22222222 | I15: =AVERAGE(I4:I13) -> 85.88888889 | J15: 85.33333333 | K15: 82.03333333 | L15: 83.5 | M15: 73.44444444 | N15: 74 | P15: התפלגות ציונים סופיים
B16: חציון | H16: =MEDIAN(H4:H13) -> 81 | I16: =MEDIAN(I4:I13) -> 86 | J16: 85 | K16: 83.75 | L16: 90 | M16: 80 | N16: 77 | P16: 0-59 | Q16: 59 | R16: =FREQUENCY(N4:N13,Q16:Q21) -> 1
B17: שכיח | H17: =MODE(H4:H13) ->  | I17: =MODE(I4:I13) -> 100 | J17: 99 | L17: 99 | N17: 60 | P17: 60-74 | Q17: 74 | R17: 3
B18: מקסימום | H18: =MAX(H4:H13) -> 94 | I18: =MAX(I4:I13) -> 100 | J18: 99 | K18: 95.66666667 | L18: 100 | M18: 100 | N18: 97 | P18: 75-84 | Q18: 84 | R18: 3
B19: מינימום | H19: =MIN(H4:H13) -> 45 | I19: =MIN(I4:I13) -> 60 | J19: 69 | K19: 52.5 | L19: 40 | M19: 45 | N19: 44 | P19: 85-94 | Q19: 94 | R19: 2
B20: סטיית תקן | H20: =STDEV(H4:H13) -> 16.53615567 | I20: =STDEV(I4:I13) -> 13.16666667 | J20: 10.42832681 | K20: 11.67534069 | L20: 20.23885153 | M20: 19.19056481 | N20: 15.81841402 | P20: 95-100 | Q20: 100 | R20: 1
B21: שונות | H21: =VAR(H4:H13) -> 273.4444444 | I21: =VAR(I4:I13) -> 173.3611111 | J21: 108.75 | K21: 136.3135802 | L21: 409.6111111 | M21: 368.2777778 | N21: 250.2222222 | P21: מעל 100 | R21: 0
B22: שלחו תרגיל/ נבחנו | H22: =COUNT(H4:H13) -> 9 | I22: =COUNT(I4:I13) -> 9 | J22: 9 | K22: 10 | L22: 10 | M22: 9 | N22: 10
B23: נכשלו | H23: =COUNTIF(H4:H13,"<"&$C$41) -> 1 | I23: 0 | J23: 0 | K23: 1 | L23: 2 | M23: 2 | N23: 1 | P23: הסטודנט עם הציון הגבוה ביותר
B24: עברו | H24: =COUNTIFS(H4:H13,">="&$C$41,H4:H13,"<"&$C$42) -> 4 | I24: 4 | J24: 4 | K24: 5 | L24: 1 | M24: 4 | N24: 6 | P24: =LOOKUP(N18,N4:N13,C4:C13) -> יעקב
B25: מצטיינים | H25: =COUNTIF(H4:H13,E42) -> 4 | I25: =COUNTIF(I4:I13,">="&$C$42) -> 5 | J25: 5 | K25: 4 | L25: 7 | M25: 3 | N25: 3
B26: מתוכם: | C26: =B45 -> סטודנטים | H26: =COUNTIFS($D$4:$D$13,$C$45,H4:H13,">="&$C$42) -> 3 | I26: 2 | J26: 3 | K26: 3 | L26: 3 | M26: 0 | N26: 1 | P26: המיקום של 'ציון סופי'
C27: =B46 -> סטודנטיות | H27: =COUNTIFS($D$4:$D$13,$C$46,H4:H13,$E$42) -> 1 | I27: 3 | J27: 2 | K27: 1 | L27: 4 | M27: 3 | N27: 2 | P27: =MATCH(N3,B3:R3,0) -> 13
B28: ס"ה סטודנטים | D28: =COUNTA(C4:C13) -> 10 | G28: ממוצע של מקבלי ציון "עובר": | H28: =AVERAGEIFS(H4:H13,H4:H13,">="&$C$41,H4:H13,"<"&$C$42) -> 72 | I28: 74.5 | J28: 76.25 | K28: 81.36666667 | L28: 81 | M28: 71.75 | N28: 70.83333333
B29: מתוכם: | C29: =B45 -> סטודנטים | D29: =COUNTIF(D4:D13,C45) -> 4 | G29: בממוצע: | H29: =AVERAGEIF($D$4:$D$13,$C45,H$4:H$13) -> 89.33333333 | I29: 83.5 | J29: 89.25 | K29: 87.33333333 | L29: 85 | M29: 60 | N29: 73.75 | P29: שליפת מידע עם index+match
C30: =B46 -> סטודנטיות | D30: =COUNTIF(D4:D13,C46) -> 6 | G30: בממוצע: | H30: 71.16666667 | I30: 87.8 | J30: 82.2 | K30: 78.5 | L30: 82.5 | M30: 84.2 | N30: 74.16666667 | P30: הזן ציון | R30: 81
P31: בחר מידע מבוקש | R31: שם הסטודנט
A32: טבלת משקולות | B32: משקל תרגיל 1 | C32: 0.1 | P32: תוצאה: | R32: =INDEX(B4:R13,MATCH(R30,N4:N13,0),MATCH(R31,B3:R3,0)) -> טלי
B33: משקל תרגיל 2 | C33: 0.1
B34: משקל תרגיל 3 | C34: 0.1
B35: משקל פרויקט | C35: 0.3 | O35: שליפת מידע עם Vlookup
B36: משקל מבחן | C36: 0.4 | O36: הזן ת.ז. | Q36: 123456789
B37: סה"כ | C37: =SUM(C32:C36) -> 1 | O37: בחר מידע מבוקש | Q37: ממוצע תרגילים | R37: =VLOOKUP($Q$36,$B$3:$R$13,MATCH(Q37,$B$3:$R$3,0),FALSE) -> 91.33333333
O38: בחר מידע מבוקש | Q38: ציון פרויקט | R38: =VLOOKUP($Q$36,$B$3:$R$13,MATCH(Q38,$B$3:$R$3,0),FALSE) -> 99
A39: טבלת עזר | C39: מ- | D39: עד | O39: בחר מידע מבוקש | Q39: ציון בחינה | R39: =VLOOKUP($Q$36,$B$3:$R$13,MATCH(Q39,$B$3:$R$3,0),FALSE) -> 80
B40: נכשל | C40: 0 | D40: 59.49 | O40: בחר מידע מבוקש | Q40: ציון סופי | R40: =VLOOKUP($Q$36,$B$3:$R$13,MATCH(Q40,$B$3:$R$3,0),FALSE) -> 89
B41: עובר | C41: 59.5 | D41: 84.49
B42: מצטיין | C42: =84.5 -> 84.5 | D42: 100 | E42: >=84.50 | O42: הגרלת מלגות
O43: ת.ז. | P43: =VLOOKUP(INT(RAND()*(MAX($B$4:$B$13)-MIN($B$4:$B$13))+MIN($B$4:$B$13)+1),$B$4:$B$13,1,1) -> 830998987 | Q43: שם הסטודנט | R43: =VLOOKUP(P43,$B$3:$R$13,MATCH(Q43,$B$3:$R$3,0),FALSE) -> מיכל | S43: התמחות | T43: =VLOOKUP(P43,$B$3:$R$13,MATCH(S43,$B$3:$R$3,0),FALSE) -> שיווק
A44: סמלים | B44: מגדר | O44: ת.ז. | P44: =VLOOKUP(INT(RAND()*(MAX($B$4:$B$13)-MIN($B$4:$B$13))+MIN($B$4:$B$13)+1),$B$4:$B$13,1,1) -> 658370843 | Q44: שם הסטודנט | R44: =VLOOKUP(P44,$B$3:$R$13,MATCH(Q44,$B$3:$R$3,0),FALSE) -> יעל | S44: התמחות | T44: =VLOOKUP(P44,$B$3:$R$13,MATCH(S44,$B$3:$R$3,0),FALSE) -> שיווק
B45: סטודנטים | C45: ז | O45: מס' זוכי המלגות מהתמחות | R45: שיווק | S45: =COUNTIF($T$43:$T$44,R45) -> 2
B46: סטודנטיות | C46: נ | O46: מס' זוכי המלגות מהתמחות | R46: חשבונאות | S46: =COUNTIF($T$43:$T$44,R46) -> 0
B50: ת.ז. | C50: שם הסטודנט | D50: מגדר | E50: טלפון | F50: מיקוד | G50: התמחות | H50: ציון ת. 1 | I50: ציון ת. 2 | J50: ציון ת. 3 | K50: ממוצע תרגילים | L50: ציון פרויקט | M50: ציון בחינה | N50: ציון סופי | O50: ציון במילים | P50: נשים מצטיינות | Q50: נשים או מצטיינים | R50: לא נכשלו | T50: מגדר
B51: 193878400 | C51: טלי | D51: נ | E51: 9876544 | F51: 70000 | G51: שיווק | H51: 81 | I51: 80 | J51: 82 | K51: 81 | L51: 81 | M51: 81 | N51: 81 | O51: עובר | Q51: מלגה | R51: מלגה | T51: נ
B52: 244576280 | C52: שחר | D52: נ | E52: 3252524 | F52: 44451 | G52: חשבונאות | H52: 94 | I52: 100 | J52: 93 | K52: 95.66666667 | L52: 95 | M52: 100 | N52: 97 | O52: מצטיין | P52: מלגה | Q52: מלגה | R52: מלגה
B53: 388923057 | C53: מיכל | D53: נ | E53: 8743644 | F53: 44141 | G53: חשבונאות | H53: 60 | I53: 100 | J53: 80 | K53: 80 | L53: 40 | M53: 61 | N53: 60 | O53: עובר | Q53: מלגה | R53: מלגה
B54: 658370843 | C54: יעל | D54: נ | E54: 2118758 | F54: 55326 | G54: שיווק | H54: 67 | I54: 99 | J54: 69 | K54: 78.33333333 | L54: 90 | M54: 85 | N54: 85 | O54: מצטיין | P54: מלגה | Q54: מלגה | R54: מלגה
B55: 830998987 | C55: מיכל | D55: נ | E55: 3527439 | F55: 56324 | G55: שיווק | H55: 80 | J55: 87 | K55: 83.5 | L55: 90 | N55: 44 | O55: נכשל | Q55: מלגה
B56: 983687692 | C56: שרון | D56: נ | E56: 6347234 | F56: 55235 | G56: חשבונאות | H56: 45 | I56: 60 | K56: 52.5 | L56: 99 | M56: 94 | N56: 78 | O56: עובר | Q56: מלגה | R56: מלגה
B58: ת.ז. | C58: שם הסטודנט | T58: מגדר
B59: 123456789 | C59: דניאל | T59: ז
B60: 298754355 | C60: רמי
B61: 947465892 | C61: שחר
B62: 987654321 | C62: יעקב
B64: שם הסטודנט | C64: ציון סופי | T64: מגדר | U64: ציון במילים
B65: שחר | C65: 97 | T65: נ | U65: מצטיין
B66: יעל | C66: 85
B68: שם הסטודנט | C68: ציון סופי | T68: ציון סופי
B69: דניאל | C69: 89 | T69: >=85
B70: שחר | C70: 97 | T70: <60
B71: יעל | C71: 85
B72: מיכל | C72: 44
B74: שם הסטודנט | C74: ציון בחינה | T74: ציון בחינה | U74: ציון בחינה
B75: דניאל | C75: 80 | T75: >=60 | U75: <85
B76: טלי | C76: 81
B77: מיכל | C77: 61
B78: שחר | C78: 65
B80: שם הסטודנט | T80: שם הסטודנט
B81: יעל | T81: י*
B82: יעקב
B84: שם הסטודנט | C84: מגדר | D84: ציון סופי | T84: מגדר | U84: ציון במילים
B85: דניאל | C85: ז | D85: 89 | T85: נ
B86: טלי | C86: נ | D86: 81 | T86: ז | U86: מצטיין
B87: שחר | C87: נ | D87: 97
B88: מיכל | C88: נ | D88: 60
B89: יעל | C89: נ | D89: 85
B90: מיכל | C90: נ | D90: 44
B91: שרון | C91: נ | D91: 78
B93: שם הסטודנט | C93: ציון סופי
B94: דניאל | C94: 89 | T94: =N4>$N$15 -> TRUE
B95: טלי | C95: 81
B96: שחר | C96: 97
B97: יעל | C97: 85
B98: שרון | C98: 78
B99: יעקב | C99: 76
B101: שם הסטודנט | C101: ציון סופי | T101: ציון סופי
B102: דניאל | C102: 89 | T102: =">"&AVERAGE(N4:N13) -> >74
B103: טלי | C103: 81
B104: שחר | C104: 97
B105: יעל | C105: 85
B106: שרון | C106: 78
B107: יעקב | C107: 76

Sheet פתרון 28-31
A1: תרגול באקסל
A3: נתונים | B3: ת.ז. | C3: שם הסטודנט | D3: מגדר | E3: טלפון | F3: מיקוד | G3: התמחות | H3: ציון ת. 1 | I3: ציון ת. 2 | J3: ציון ת. 3 | K3: ממוצע תרגילים | L3: ציון פרויקט | M3: ציון בחינה | N3: ציון סופי | O3: ציון במילים | P3: נשים מצטיינות | Q3: נשים או מצטיינים | R3: לא נכשלו | T3: קריטריונים לסינון מתקדם
B4: 123456789 | C4: דניאל | D4: ז | E4: 9877665 | F4: 123 | G4: שיווק | H4: 89 | I4: 86 | J4: 99 | K4: =AVERAGE(H4:J4) -> 91.33333333 | L4: 99 | M4: 80 | N4: =ROUND(H4*$C$32+I4*$C$33+J4*$C$34+L4*$C$35+M4*$C$36,0) -> 89 | O4: =IF(N4<$C$41,$B$40,IF(N4<$C$42,$B$41,$B$42)) -> מצטיין | P4: =IF(AND(D4=$C$46,O4=$B$42),"מלגה","") ->  | Q4: =IF(OR(D4=$C$46,O4=$B$42),"מלגה","") -> מלגה | R4: =IF(NOT(N4<$C$41),"מלגה","") -> מלגה
B5: 193878400 | C5: טלי | D5: נ | E5: 9876544 | F5: 70000 | G5: שיווק | H5: 81 | I5: 80 | J5: 82 | K5: 81 | L5: 81 | M5: 81 | N5: 81 | O5: עובר | Q5: מלגה | R5: מלגה
B6: 244576280 | C6: שחר | D6: נ | E6: 3252524 | F6: 44451 | G6: חשבונאות | H6: 94 | I6: 100 | J6: 93 | K6: 95.66666667 | L6: 95 | M6: 100 | N6: 97 | O6: מצטיין | P6: מלגה | Q6: מלגה | R6: מלגה
B7: 298754355 | C7: רמי | D7: ז | E7: 8763456 | F7: 83934 | G7: חשבונאות | H7: 88 | I7: 90 | J7: 74 | K7: 84 | L7: 55 | M7: 45 | N7: 60 | O7: עובר | R7: מלגה
B8: 388923057 | C8: מיכל | D8: נ | E8: 8743644 | F8: 44141 | G8: חשבונאות | H8: 60 | I8: 100 | J8: 80 | K8: 80 | L8: 40 | M8: 61 | N8: 60 | O8: עובר | Q8: מלגה | R8: מלגה
B9: 658370843 | C9: יעל | D9: נ | E9: 2118758 | F9: 55326 | G9: שיווק | H9: 67 | I9: 99 | J9: 69 | K9: 78.33333333 | L9: 90 | M9: 85 | N9: 85 | O9: מצטיין | P9: מלגה | Q9: מלגה | R9: מלגה
B10: 830998987 | C10: מיכל | D10: נ | E10: 3527439 | F10: 56324 | G10: שיווק | H10: 80 | J10: 87 | K10: 83.5 | L10: 90 | N10: 44 | O10: נכשל | Q10: מלגה
B11: 947465892 | C11: שחר | D11: ז | E11: 3434324 | F11: 41466 | G11: חשבונאות | I11: 79 | J11: 99 | K11: 89 | L11: 86 | M11: 65 | N11: 70 | O11: עובר | R11: מלגה
B12: 983687692 | C12: שרון | D12: נ | E12: 6347234 | F12: 55235 | G12: חשבונאות | H12: 45 | I12: 60 | K12: 52.5 | L12: 99 | M12: 94 | N12: 78 | O12: עובר | Q12: מלגה | R12: מלגה
B13: 987654321 | C13: יעקב | D13: ז | E13: 7563094 | F13: 86534 | G13: שיווק | H13: 91 | I13: 79 | J13: 85 | K13: 85 | L13: 100 | M13: 50 | N13: 76 | O13: עובר | R13: מלגה
A15: חישובים | B15: ממוצע כיתתי | H15: =AVERAGE(H4:H13) -> 77.22222222 | I15: =AVERAGE(I4:I13) -> 85.88888889 | J15: 85.33333333 | K15: 82.03333333 | L15: 83.5 | M15: 73.44444444 | N15: 74 | P15: התפלגות ציונים סופיים
B16: חציון | H16: =MEDIAN(H4:H13) -> 81 | I16: =MEDIAN(I4:I13) -> 86 | J16: 85 | K16: 83.75 | L16: 90 | M16: 80 | N16: 77 | P16: 0-59 | Q16: 59 | R16: =FREQUENCY(N4:N13,Q16:Q21) -> 1
B17: שכיח | H17: =MODE(H4:H13) ->  | I17: =MODE(I4:I13) -> 100 | J17: 99 | L17: 99 | N17: 60 | P17: 60-74 | Q17: 74 | R17: 3
B18: מקסימום | H18: =MAX(H4:H13) -> 94 | I18: =MAX(I4:I13) -> 100 | J18: 99 | K18: 95.66666667 | L18: 100 | M18: 100 | N18: 97 | P18: 75-84 | Q18: 84 | R18: 3
B19: מינימום | H19: =MIN(H4:H13) -> 45 | I19: =MIN(I4:I13) -> 60 | J19: 69 | K19: 52.5 | L19: 40 | M19: 45 | N19: 44 | P19: 85-94 | Q19: 94 | R19: 2
B20: סטיית תקן | H20: =STDEV(H4:H13) -> 16.53615567 | I20: =STDEV(I4:I13) -> 13.16666667 | J20: 10.42832681 | K20: 11.67534069 | L20: 20.23885153 | M20: 19.19056481 | N20: 15.81841402 | P20: 95-100 | Q20: 100 | R20: 1
B21: שונות | H21: =VAR(H4:H13) -> 273.4444444 | I21: =VAR(I4:I13) -> 173.3611111 | J21: 108.75 | K21: 136.3135802 | L21: 409.6111111 | M21: 368.2777778 | N21: 250.2222222 | P21: מעל 100 | R21: 0
B22: שלחו תרגיל/ נבחנו | H22: =COUNT(H4:H13) -> 9 | I22: =COUNT(I4:I13) -> 9 | J22: 9 | K22: 10 | L22: 10 | M22: 9 | N22: 10
B23: נכשלו | H23: =COUNTIF(H4:H13,"<"&$C$41) -> 1 | I23: 0 | J23: 0 | K23: 1 | L23: 2 | M23: 2 | N23: 1 | P23: הסטודנט עם הציון הגבוה ביותר
B24: עברו | H24: =COUNTIFS(H4:H13,">="&$C$41,H4:H13,"<"&$C$42) -> 4 | I24: 4 | J24: 4 | K24: 5 | L24: 1 | M24: 4 | N24: 6 | P24: =LOOKUP(N18,N4:N13,C4:C13) -> יעקב
B25: מצטיינים | H25: =COUNTIF(H4:H13,E42) -> 4 | I25: =COUNTIF(I4:I13,">="&$C$42) -> 5 | J25: 5 | K25: 4 | L25: 7 | M25: 3 | N25: 3
B26: מתוכם: | C26: =B45 -> סטודנטים | H26: =COUNTIFS($D$4:$D$13,$C$45,H4:H13,">="&$C$42) -> 3 | I26: 2 | J26: 3 | K26: 3 | L26: 3 | M26: 0 | N26: 1 | P26: המיקום של 'ציון סופי'
C27: =B46 -> סטודנטיות | H27: =COUNTIFS($D$4:$D$13,$C$46,H4:H13,$E$42) -> 1 | I27: 3 | J27: 2 | K27: 1 | L27: 4 | M27: 3 | N27: 2 | P27: =MATCH(N3,B3:R3,0) -> 13
B28: ס"ה סטודנטים | D28: =COUNTA(C4:C13) -> 10 | G28: ממוצע של מקבלי ציון "עובר": | H28: =AVERAGEIFS(H4:H13,H4:H13,">="&$C$41,H4:H13,"<"&$C$42) -> 72 | I28: 74.5 | J28: 76.25 | K28: 81.36666667 | L28: 81 | M28: 71.75 | N28: 70.83333333
B29: מתוכם: | C29: =B45 -> סטודנטים | D29: =COUNTIF(D4:D13,C45) -> 4 | G29: בממוצע: | H29: =AVERAGEIF($D$4:$D$13,$C45,H$4:H$13) -> 89.33333333 | I29: 83.5 | J29: 89.25 | K29: 87.33333333 | L29: 85 | M29: 60 | N29: 73.75 | P29: שליפת מידע עם index+match
C30: =B46 -> סטודנטיות | D30: =COUNTIF(D4:D13,C46) -> 6 | G30: בממוצע: | H30: 71.16666667 | I30: 87.8 | J30: 82.2 | K30: 78.5 | L30: 82.5 | M30: 84.2 | N30: 74.16666667 | P30: הזן ציון | R30: 81
P31: בחר מידע מבוקש | R31: שם הסטודנט
A32: טבלת משקולות | B32: משקל תרגיל 1 | C32: 0.1 | P32: תוצאה: | R32: =INDEX(B4:R13,MATCH(R30,N4:N13,0),MATCH(R31,B3:R3,0)) -> טלי
B33: משקל תרגיל 2 | C33: 0.1
B34: משקל תרגיל 3 | C34: 0.1
B35: משקל פרויקט | C35: 0.3 | O35: שליפת מידע עם Vlookup
B36: משקל מבחן | C36: 0.4 | O36: הזן ת.ז. | Q36: 123456789
B37: סה"כ | C37: =SUM(C32:C36) -> 1 | O37: בחר מידע מבוקש | Q37: ממוצע תרגילים | R37: =VLOOKUP($Q$36,$B$3:$R$13,MATCH(Q37,$B$3:$R$3,0),FALSE) -> 91.33333333
O38: בחר מידע מבוקש | Q38: ציון פרויקט | R38: =VLOOKUP($Q$36,$B$3:$R$13,MATCH(Q38,$B$3:$R$3,0),FALSE) -> 99
A39: טבלת עזר | C39: מ- | D39: עד | O39: בחר מידע מבוקש | Q39: ציון בחינה | R39: =VLOOKUP($Q$36,$B$3:$R$13,MATCH(Q39,$B$3:$R$3,0),FALSE) -> 80
B40: נכשל | C40: 0 | D40: 59.49 | O40: בחר מידע מבוקש | Q40: ציון סופי | R40: =VLOOKUP($Q$36,$B$3:$R$13,MATCH(Q40,$B$3:$R$3,0),FALSE) -> 89
B41: עובר | C41: 59.5 | D41: 84.49
B42: מצטיין | C42: =84.5 -> 84.5 | D42: 100 | E42: >=84.50 | O42: הגרלת מלגות
O43: ת.ז. | P43: =VLOOKUP(INT(RAND()*(MAX($B$4:$B$13)-MIN($B$4:$B$13))+MIN($B$4:$B$13)+1),$B$4:$B$13,1,1) -> 388923057 | Q43: שם הסטודנט | R43: =VLOOKUP(P43,$B$3:$R$13,MATCH(Q43,$B$3:$R$3,0),FALSE) -> מיכל | S43: התמחות | T43: =VLOOKUP(P43,$B$3:$R$13,MATCH(S43,$B$3:$R$3,0),FALSE) -> חשבונאות
A44: סמלים | B44: מגדר | O44: ת.ז. | P44: =VLOOKUP(INT(RAND()*(MAX($B$4:$B$13)-MIN($B$4:$B$13))+MIN($B$4:$B$13)+1),$B$4:$B$13,1,1) -> 658370843 | Q44: שם הסטודנט | R44: =VLOOKUP(P44,$B$3:$R$13,MATCH(Q44,$B$3:$R$3,0),FALSE) -> יעל | S44: התמחות | T44: =VLOOKUP(P44,$B$3:$R$13,MATCH(S44,$B$3:$R$3,0),FALSE) -> שיווק
B45: סטודנטים | C45: ז | O45: מס' זוכי המלגות מהתמחות | R45: שיווק | S45: =COUNTIF($T$43:$T$44,R45) -> 1
B46: סטודנטיות | C46: נ | O46: מס' זוכי המלגות מהתמחות | R46: חשבונאות | S46: =COUNTIF($T$43:$T$44,R46) -> 1
B50: ת.ז. | C50: שם הסטודנט | D50: מגדר | E50: טלפון | F50: מיקוד | G50: התמחות | H50: ציון ת. 1 | I50: ציון ת. 2 | J50: ציון ת. 3 | K50: ממוצע תרגילים | L50: ציון פרויקט | M50: ציון בחינה | N50: ציון סופי | O50: ציון במילים | P50: נשים מצטיינות | Q50: נשים או מצטיינים | R50: לא נכשלו | T50: מגדר
B51: 193878400 | C51: טלי | D51: נ | E51: 9876544 | F51: 70000 | G51: שיווק | H51: 81 | I51: 80 | J51: 82 | K51: 81 | L51: 81 | M51: 81 | N51: 81 | O51: עובר | Q51: מלגה | R51: מלגה | T51: נ
B52: 244576280 | C52: שחר | D52: נ | E52: 3252524 | F52: 44451 | G52: חשבונאות | H52: 94 | I52: 100 | J52: 93 | K52: 95.66666667 | L52: 95 | M52: 100 | N52: 97 | O52: מצטיין | P52: מלגה | Q52: מלגה | R52: מלגה
B53: 388923057 | C53: מיכל | D53: נ | E53: 8743644 | F53: 44141 | G53: חשבונאות | H53: 60 | I53: 100 | J53: 80 | K53: 80 | L53: 40 | M53: 61 | N53: 60 | O53: עובר | Q53: מלגה | R53: מלגה
B54: 658370843 | C54: יעל | D54: נ | E54: 2118758 | F54: 55326 | G54: שיווק | H54: 67 | I54: 99 | J54: 69 | K54: 78.33333333 | L54: 90 | M54: 85 | N54: 85 | O54: מצטיין | P54: מלגה | Q54: מלגה | R54: מלגה
B55: 830998987 | C55: מיכל | D55: נ | E55: 3527439 | F55: 56324 | G55: שיווק | H55: 80 | J55: 87 | K55: 83.5 | L55: 90 | N55: 44 | O55: נכשל | Q55: מלגה
B56: 983687692 | C56: שרון | D56: נ | E56: 6347234 | F56: 55235 | G56: חשבונאות | H56: 45 | I56: 60 | K56: 52.5 | L56: 99 | M56: 94 | N56: 78 | O56: עובר | Q56: מלגה | R56: מלגה
B58: ת.ז. | C58: שם הסטודנט | T58: מגדר
B59: 123456789 | C59: דניאל | T59: ז
B60: 298754355 | C60: רמי
B61: 947465892 | C61: שחר
B62: 987654321 | C62: יעקב
B64: שם הסטודנט | C64: ציון סופי | T64: מגדר | U64: ציון במילים
B65: שחר | C65: 97 | T65: נ | U65: מצטיין
B66: יעל | C66: 85
B68: שם הסטודנט | C68: ציון סופי | T68: ציון סופי
B69: דניאל | C69: 89 | T69: >=85
B70: שחר | C70: 97 | T70: <60
B71: יעל | C71: 85
B72: מיכל | C72: 44
B74: שם הסטודנט | C74: ציון בחינה | T74: ציון בחינה | U74: ציון בחינה
B75: דניאל | C75: 80 | T75: >=60 | U75: <85
B76: טלי | C76: 81
B77: מיכל | C77: 61
B78: שחר | C78: 65
B80: שם הסטודנט | T80: שם הסטודנט
B81: יעל | T81: י*
B82: יעקב
B84: שם הסטודנט | C84: מגדר | D84: ציון סופי | T84: מגדר | U84: ציון במילים
B85: דניאל | C85: ז | D85: 89 | T85: נ
B86: טלי | C86: נ | D86: 81 | T86: ז | U86: מצטיין
B87: שחר | C87: נ | D87: 97
B88: מיכל | C88: נ | D88: 60
B89: יעל | C89: נ | D89: 85
B90: מיכל | C90: נ | D90: 44
B91: שרון | C91: נ | D91: 78
B93: שם הסטודנט | C93: ציון סופי
B94: דניאל | C94: 89 | T94: =N4>$N$15 -> TRUE
B95: טלי | C95: 81
B96: שחר | C96: 97
B97: יעל | C97: 85
B98: שרון | C98: 78
B99: יעקב | C99: 76
B101: שם הסטודנט | C101: ציון סופי | T101: ציון סופי
B102: דניאל | C102: 89 | T102: =">"&AVERAGE(N4:N13) -> >74
B103: טלי | C103: 81
B104: שחר | C104: 97
B105: יעל | C105: 85
B106: שרון | C106: 78
B107: יעקב | C107: 76
